Body,Body name,Date,Transaction number,Amount,Non recoverable VAT included in amount,Supplier name,Supplier ID,Expense area,Fund type,Expense type,Category description
http://thanet.gov.uk/supplierspend,Thanet District Council,02/02/2016,401041,489.00,,A Better Choice For Building Con Ltd,ABC003,Community Services,Revenue,Services,Consultancy
http://thanet.gov.uk/supplierspend,Thanet District Council,02/02/2016,400601,617.53,,Adecco Uk Ltd,ADE005,Chief Executive,Revenue,Agency Staff,Human Resources
http://thanet.gov.uk/supplierspend,Thanet District Council,02/02/2016,401030,617.53,,Adecco Uk Ltd,ADE005,Chief Executive,Revenue,Agency Staff,Human Resources
http://thanet.gov.uk/supplierspend,Thanet District Council,02/02/2016,400908,621.81,,Albion Fencing&Construction Kent Ltd,ALB005,Operational Services,Revenue,"Repairs,  Alter & Mtce - Build",Building Construction Material
http://thanet.gov.uk/supplierspend,Thanet District Council,02/02/2016,401445,6844.16,,Albion Fencing&Construction Kent Ltd,ALB005,Corporate Resources and S151,Balance Sheet,Plant And Equipment,Building Construction Material
http://thanet.gov.uk/supplierspend,Thanet District Council,02/02/2016,401105,220.00,,All Sign Solutions Ltd,ALL002,Corporate Resources and S151,Balance Sheet,Plant And Equipment,Building Construction Material
http://thanet.gov.uk/supplierspend,Thanet District Council,02/02/2016,401107,265.00,,All Sign Solutions Ltd,ALL002,Operational Services,Revenue,"Repairs,  Alter & Mtce - Build",Building Construction Material
http://thanet.gov.uk/supplierspend,Thanet District Council,02/02/2016,400570,297.97,,British Gas Business,GAS009,Community Services,Revenue,Energy Costs,Utilities
http://thanet.gov.uk/supplierspend,Thanet District Council,02/02/2016,400572,298.13,,British Gas Business,GAS009,Community Services,Revenue,Energy Costs,Utilities
http://thanet.gov.uk/supplierspend,Thanet District Council,02/02/2016,400611,-299.63,,British Gas Business,GAS009,Community Services,Revenue,Energy Costs,Utilities
http://thanet.gov.uk/supplierspend,Thanet District Council,02/02/2016,400612,-297.97,,British Gas Business,GAS009,Community Services,Revenue,Energy Costs,Utilities
http://thanet.gov.uk/supplierspend,Thanet District Council,02/02/2016,401354,1236.65,,Buckingham Futures Limited,BUC010,Community Services,Revenue,Agency Staff,Human Resources
http://thanet.gov.uk/supplierspend,Thanet District Council,02/02/2016,401355,666.65,,Buckingham Futures Limited,BUC010,Community Services,Revenue,Agency Staff,Human Resources
http://thanet.gov.uk/supplierspend,Thanet District Council,02/02/2016,400907,1904.25,,Campbell Reith Hill Llp,CAM013,Corporate Resources and S151,Balance Sheet,Investment Property For Lease,Consultancy
http://thanet.gov.uk/supplierspend,Thanet District Council,02/02/2016,399282,41255.40,,Canterbury City Council,CAN004,Community Services,Revenue,Agency Staff,Various Cats-Public Sector
http://thanet.gov.uk/supplierspend,Thanet District Council,02/02/2016,400604,5000.00,,Canterbury City Council,CAN004,Chief Executive,Revenue,Services,Various Cats-Public Sector
http://thanet.gov.uk/supplierspend,Thanet District Council,02/02/2016,401291,270.00,,Canterbury City Council,CAN004,Community Services,Revenue,"Print, Stat And Gen Off Exps",Various Cats-Public Sector
http://thanet.gov.uk/supplierspend,Thanet District Council,02/02/2016,401043,1265.00,,Canterbury College,CAN005,East Kent Shared Services,Revenue,Expenses,Human Resources
http://thanet.gov.uk/supplierspend,Thanet District Council,02/02/2016,401281,256.28,,Channel Commercials Plc,CCO001,Operational Services,Revenue,Direct Transport Costs,Vehicle Management
http://thanet.gov.uk/supplierspend,Thanet District Council,02/02/2016,400995,3519.72,,Commercial Services Trading Ltd,COM048,Operational Services,Revenue,Cont Hire & Operating Lease,Various Cats-Public Sector
http://thanet.gov.uk/supplierspend,Thanet District Council,02/02/2016,400940,6750.00,,Concrete & Corrosion Cons Prac Ltd,CON049,Corporate Resources and S151,Balance Sheet,Other Land And Buildings-Hra,Construction-Repair And Maint
http://thanet.gov.uk/supplierspend,Thanet District Council,02/02/2016,400519,900.00,,Dotted Eyes Ltd,DOT001,East Kent Shared Services,Revenue,Communications & Computing,ICT
http://thanet.gov.uk/supplierspend,Thanet District Council,02/02/2016,394949,1550.00,,Dover Counselling Centre,DOV014,Corporate Resources and S151,Revenue,Employee Related Schemes,Healthcare
http://thanet.gov.uk/supplierspend,Thanet District Council,02/02/2016,400485,342.20,,Edf Energy Customers Plc,EDF004,Operational Services,Revenue,Energy Costs,Utilities
http://thanet.gov.uk/supplierspend,Thanet District Council,02/02/2016,400945,444.29,,Edf Energy Customers Plc,EDF004,Community Services,Revenue,Energy Costs,Utilities
http://thanet.gov.uk/supplierspend,Thanet District Council,02/02/2016,401298,-444.29,,Edf Energy Customers Plc,EDF004,Community Services,Revenue,Energy Costs,Utilities
http://thanet.gov.uk/supplierspend,Thanet District Council,02/02/2016,400943,488.80,,Eyeball Signs,EYE002,Operational Services,Revenue,"Repairs,  Alter & Mtce - Build",Facilities And Management Serv
http://thanet.gov.uk/supplierspend,Thanet District Council,02/02/2016,400979,1943.00,,Glory Global Solutions (Int) Limited,GLO014,Operational Services,Revenue,"Equip, Furniture And Materials",Financial Services
http://thanet.gov.uk/supplierspend,Thanet District Council,02/02/2016,401013,491.89,,Hands On Suppliers Ltd,HAN007,Operational Services,Revenue,"Equip, Furniture And Materials",Clothing
http://thanet.gov.uk/supplierspend,Thanet District Council,02/02/2016,400815,1642.50,,Heath Lambert Limited (Client Money),HEA011,Corporate Resources and S151,Balance Sheet,Insurance Holding Account,Financial Services
http://thanet.gov.uk/supplierspend,Thanet District Council,02/02/2016,400816,99031.80,,Heath Lambert Limited (Client Money),HEA011,Corporate Resources and S151,Balance Sheet,Insurance Holding Account,Financial Services
http://thanet.gov.uk/supplierspend,Thanet District Council,02/02/2016,400817,4016.81,,Heath Lambert Limited (Client Money),HEA011,Corporate Resources and S151,Balance Sheet,Insurance Holding Account,Financial Services
http://thanet.gov.uk/supplierspend,Thanet District Council,02/02/2016,401037,3000.00,,Heath Lambert Limited (Client Money),HEA011,Corporate Resources and S151,Balance Sheet,Insurance Holding Account,Financial Services
http://thanet.gov.uk/supplierspend,Thanet District Council,02/02/2016,400894,1090.00,,Holbrook Revell Electrical Ltd,HOL015,Operational Services,Revenue,"Repairs,  Alter & Mtce - Build",Building Construction Material
http://thanet.gov.uk/supplierspend,Thanet District Council,02/02/2016,401400,442.52,,Hr Go (Kent) Ltd,HRG001,Corporate Resources and S151,Revenue,Agency Staff,Human Resources
http://thanet.gov.uk/supplierspend,Thanet District Council,02/02/2016,401404,388.50,,Hr Go (Kent) Ltd,HRG001,Operational Services,Revenue,Agency Staff,Human Resources
http://thanet.gov.uk/supplierspend,Thanet District Council,02/02/2016,401448,500.00,,Hse Training Ltd,HSE002,Operational Services,Revenue,"Equip, Furniture And Materials",Human Resources
http://thanet.gov.uk/supplierspend,Thanet District Council,02/02/2016,401473,2214.24,,Iken Business Ltd,IKE001,Corporate Governance,Revenue,Communications & Computing,ICT
http://thanet.gov.uk/supplierspend,Thanet District Council,02/02/2016,401429,1426.20,,John Gale,GAL001,Corporate Resources and S151,Balance Sheet,Capital Exp-Non Council Assets,Grants
http://thanet.gov.uk/supplierspend,Thanet District Council,02/02/2016,401061,660.00,,John Reeve (Plant Hire) Ltd,REE013,Operational Services,Revenue,"Repairs,  Alter & Mtce - Build",Vehicle Management
http://thanet.gov.uk/supplierspend,Thanet District Council,02/02/2016,401094,5000.00,,Kent County Council,KCC002,Community Services,Revenue,Grants & Subscriptions,Various Cats-Public Sector
http://thanet.gov.uk/supplierspend,Thanet District Council,02/02/2016,401125,4578.00,,Kent County Council,KCC002,Community Services,Revenue,Services,Various Cats-Public Sector
http://thanet.gov.uk/supplierspend,Thanet District Council,02/02/2016,399604,-357.44,,Kent County Council (Kcs),KCC003,Operational Services,Revenue,Energy Costs,Facilities And Management Serv
http://thanet.gov.uk/supplierspend,Thanet District Council,02/02/2016,400279,1222.21,,Kent County Council (Kcs),KCC003,Corporate Resources and S151,Revenue,Energy Costs,Facilities And Management Serv
http://thanet.gov.uk/supplierspend,Thanet District Council,02/02/2016,400280,248.49,,Kent County Council (Kcs),KCC003,Community Services,Revenue,Energy Costs,Facilities And Management Serv
http://thanet.gov.uk/supplierspend,Thanet District Council,02/02/2016,400282,439.03,,Kent County Council (Kcs),KCC003,Operational Services,Revenue,Energy Costs,Facilities And Management Serv
http://thanet.gov.uk/supplierspend,Thanet District Council,02/02/2016,400283,669.27,,Kent County Council (Kcs),KCC003,Operational Services,Revenue,Energy Costs,Facilities And Management Serv
http://thanet.gov.uk/supplierspend,Thanet District Council,02/02/2016,400284,1067.16,,Kent County Council (Kcs),KCC003,Community Services,Revenue,Energy Costs,Facilities And Management Serv
http://thanet.gov.uk/supplierspend,Thanet District Council,02/02/2016,400285,1113.93,,Kent County Council (Kcs),KCC003,Corporate Resources and S151,Revenue,Energy Costs,Facilities And Management Serv
http://thanet.gov.uk/supplierspend,Thanet District Council,02/02/2016,400589,1805.76,,Kent County Council (Kcs),KCC003,Operational Services,Revenue,Energy Costs,Facilities And Management Serv
http://thanet.gov.uk/supplierspend,Thanet District Council,02/02/2016,400590,1751.25,,Kent County Council (Kcs),KCC003,Operational Services,Revenue,Energy Costs,Facilities And Management Serv
http://thanet.gov.uk/supplierspend,Thanet District Council,02/02/2016,400591,1919.73,,Kent County Council (Kcs),KCC003,Operational Services,Revenue,Energy Costs,Facilities And Management Serv
http://thanet.gov.uk/supplierspend,Thanet District Council,02/02/2016,400592,1568.27,,Kent County Council (Kcs),KCC003,Operational Services,Revenue,Energy Costs,Facilities And Management Serv
http://thanet.gov.uk/supplierspend,Thanet District Council,02/02/2016,400593,1917.90,,Kent County Council (Kcs),KCC003,Operational Services,Revenue,Energy Costs,Facilities And Management Serv
http://thanet.gov.uk/supplierspend,Thanet District Council,02/02/2016,400594,1763.83,,Kent County Council (Kcs),KCC003,Operational Services,Revenue,Energy Costs,Facilities And Management Serv
http://thanet.gov.uk/supplierspend,Thanet District Council,02/02/2016,400597,394.24,,Kent County Council (Kcs),KCC003,Operational Services,Revenue,Energy Costs,Facilities And Management Serv
http://thanet.gov.uk/supplierspend,Thanet District Council,02/02/2016,400793,1154.60,,Kent County Council (Kcs),KCC003,Operational Services,Revenue,Energy Costs,Facilities And Management Serv
http://thanet.gov.uk/supplierspend,Thanet District Council,02/02/2016,400794,1328.69,,Kent County Council (Kcs),KCC003,Operational Services,Revenue,Energy Costs,Facilities And Management Serv
http://thanet.gov.uk/supplierspend,Thanet District Council,02/02/2016,400795,1810.16,,Kent County Council (Kcs),KCC003,Operational Services,Revenue,Energy Costs,Facilities And Management Serv
http://thanet.gov.uk/supplierspend,Thanet District Council,02/02/2016,400796,1444.74,,Kent County Council (Kcs),KCC003,Operational Services,Revenue,Energy Costs,Facilities And Management Serv
http://thanet.gov.uk/supplierspend,Thanet District Council,02/02/2016,401022,3151.84,,Kent County Council (Kcs),KCC003,Community Services,Revenue,Energy Costs,Facilities And Management Serv
http://thanet.gov.uk/supplierspend,Thanet District Council,02/02/2016,401023,9623.59,,Kent County Council (Kcs),KCC003,Community Services,Revenue,Energy Costs,Facilities And Management Serv
http://thanet.gov.uk/supplierspend,Thanet District Council,02/02/2016,401024,14632.69,,Kent County Council (Kcs),KCC003,Community Services,Revenue,Energy Costs,Facilities And Management Serv
http://thanet.gov.uk/supplierspend,Thanet District Council,02/02/2016,401025,9473.20,,Kent County Council (Kcs),KCC003,Community Services,Revenue,Energy Costs,Facilities And Management Serv
http://thanet.gov.uk/supplierspend,Thanet District Council,02/02/2016,401026,8255.50,,Kent County Council (Kcs),KCC003,Community Services,Revenue,Energy Costs,Facilities And Management Serv
http://thanet.gov.uk/supplierspend,Thanet District Council,02/02/2016,401027,12093.67,,Kent County Council (Kcs),KCC003,Community Services,Revenue,Energy Costs,Facilities And Management Serv
http://thanet.gov.uk/supplierspend,Thanet District Council,02/02/2016,401028,13010.19,,Kent County Council (Kcs),KCC003,Community Services,Revenue,Energy Costs,Facilities And Management Serv
http://thanet.gov.uk/supplierspend,Thanet District Council,02/02/2016,401446,3000.00,,Kent Wildlife Trust,KEN007,Operational Services,Revenue,Grants & Subscriptions,Various Categories
http://thanet.gov.uk/supplierspend,Thanet District Council,02/02/2016,401427,6000.00,,Local Government Association,LGA001,Corporate Resources and S151,Revenue,Grants & Subscriptions,Various Categories
http://thanet.gov.uk/supplierspend,Thanet District Council,02/02/2016,401016,376.00,,Lyreco Uk Limited,LYR001,Corporate Resources and S151,Revenue,"Print, Stat And Gen Off Exps",Stationery
http://thanet.gov.uk/supplierspend,Thanet District Council,02/02/2016,401348,320.00,,M D Electrics,MDE001,Community Services,Revenue,"Repairs,  Alter & Mtce - Build",Building Construction Material
http://thanet.gov.uk/supplierspend,Thanet District Council,02/02/2016,401064,4563.10,,M.T.S. Cleansing Services Ltd,MTS001,Operational Services,Revenue,"Repairs,  Alter & Mtce - Build",Environmental Services
http://thanet.gov.uk/supplierspend,Thanet District Council,02/02/2016,401129,1200.00,,Main Man Supplies Ltd,MAI001,Operational Services,Revenue,"Clothes, Uniforms & Laundry",Clothing
http://thanet.gov.uk/supplierspend,Thanet District Council,02/02/2016,399910,1795.00,,Maxwells Grounds Maintenance Ltd,MAX002,Operational Services,Revenue,"Repairs,  Alter & Mtce - Build",Construction-Repair And Maint
http://thanet.gov.uk/supplierspend,Thanet District Council,02/02/2016,401089,547.43,,Mears Ltd,MEA003,Community Services,Revenue,"Repairs,  Alter & Mtce - Build",Construction-Repair And Maint
http://thanet.gov.uk/supplierspend,Thanet District Council,02/02/2016,401100,1237.62,,Mears Ltd,MEA003,Operational Services,Revenue,"Repairs,  Alter & Mtce - Build",Construction-Repair And Maint
http://thanet.gov.uk/supplierspend,Thanet District Council,02/02/2016,401128,260.00,,Michelle Williams,WIL064,Community Services,Revenue,Services,Arts And Leisure Services
http://thanet.gov.uk/supplierspend,Thanet District Council,02/02/2016,401310,508.64,,Morgan Jones Ltd,MOR001,Corporate Resources and S151,Revenue,Agency Staff,Human Resources
http://thanet.gov.uk/supplierspend,Thanet District Council,02/02/2016,401311,542.30,,Morgan Jones Ltd,MOR001,Corporate Resources and S151,Revenue,Agency Staff,Human Resources
http://thanet.gov.uk/supplierspend,Thanet District Council,02/02/2016,401312,582.75,,Morgan Jones Ltd,MOR001,Community Services,Revenue,Agency Staff,Human Resources
http://thanet.gov.uk/supplierspend,Thanet District Council,02/02/2016,401124,655.00,,Mrs K Hooper,HOO004,Corporate Resources and S151,Revenue,Services,Consultancy
http://thanet.gov.uk/supplierspend,Thanet District Council,02/02/2016,401063,535.98,,Neopost Ltd,NEO003,Corporate Resources and S151,Revenue,"Print, Stat And Gen Off Exps",Mail Services
http://thanet.gov.uk/supplierspend,Thanet District Council,02/02/2016,400906,1417.70,,Ocs Group Uk Ltd T/A Fountains,OCS005,Operational Services,Revenue,Fixtures & Fittings,Cleaning And Janitorial
http://thanet.gov.uk/supplierspend,Thanet District Council,02/02/2016,401101,472.34,,Ocs Group Uk Ltd T/A Fountains,OCS005,Operational Services,Revenue,Fixtures & Fittings,Cleaning And Janitorial
http://thanet.gov.uk/supplierspend,Thanet District Council,02/02/2016,401042,104.75,,Parkeon Limited,PAR063,Community Services,Revenue,"Equip, Furniture And Materials",Street And Traffic Management
http://thanet.gov.uk/supplierspend,Thanet District Council,02/02/2016,401042,921.25,,Parkeon Limited,PAR063,Operational Services,Revenue,"Equip, Furniture And Materials",Street And Traffic Management
http://thanet.gov.uk/supplierspend,Thanet District Council,02/02/2016,401440,450.00,,R Cannon,CAN007,Operational Services,Revenue,Services,Maritime Services
http://thanet.gov.uk/supplierspend,Thanet District Council,02/02/2016,401442,450.00,,R Cannon,CAN007,Operational Services,Revenue,Services,Maritime Services
http://thanet.gov.uk/supplierspend,Thanet District Council,02/02/2016,400920,3600.00,,Red Zebra Community Solutions,RED022,Community Services,Revenue,Grants & Subscriptions,Special Community Care
http://thanet.gov.uk/supplierspend,Thanet District Council,02/02/2016,401090,1320.00,,Reed Specialist Recruitment Ltd,REE015,East Kent Shared Services,Revenue,Agency Staff,Human Resources
http://thanet.gov.uk/supplierspend,Thanet District Council,02/02/2016,401039,509.00,,Rics,RIC007,Corporate Resources and S151,Revenue,Employee Related Schemes,Financial Services
http://thanet.gov.uk/supplierspend,Thanet District Council,02/02/2016,400933,1120.50,,Rigby Taylor Ltd,RIG002,Operational Services,Revenue,"Repairs,  Alter & Mtce - Build",Horticultural
http://thanet.gov.uk/supplierspend,Thanet District Council,02/02/2016,401389,1787.23,,Royal Mail,ROY004,Corporate Resources and S151,Revenue,Communications & Computing,Mail Services
http://thanet.gov.uk/supplierspend,Thanet District Council,02/02/2016,401076,430.00,,S C Green Limited,GRE026,Corporate Resources and S151,Balance Sheet,Council Dwellings,Consultancy
http://thanet.gov.uk/supplierspend,Thanet District Council,02/02/2016,401438,357.69,,Seasafe Systems Ltd,SEA004,Operational Services,Revenue,"Clothes, Uniforms & Laundry",Clothing
http://thanet.gov.uk/supplierspend,Thanet District Council,02/02/2016,400706,3914.00,,Sharpe Pritchard Llp,SHA030,Community Services,Revenue,Services,Legal Services
http://thanet.gov.uk/supplierspend,Thanet District Council,02/02/2016,401447,261.00,,South East Netting Limited,SOU016,Operational Services,Revenue,"Repairs,  Alter & Mtce - Build",Building Construction Material
http://thanet.gov.uk/supplierspend,Thanet District Council,02/02/2016,400512,1772.16,,Southern Water,SWA001,Operational Services,Revenue,Water Services,Utilities
http://thanet.gov.uk/supplierspend,Thanet District Council,02/02/2016,400513,5547.35,,Southern Water,SWA001,Operational Services,Revenue,Water Services,Utilities
http://thanet.gov.uk/supplierspend,Thanet District Council,02/02/2016,400515,510.80,,Southern Water,SWA001,Operational Services,Revenue,Water Services,Utilities
http://thanet.gov.uk/supplierspend,Thanet District Council,02/02/2016,400835,1507.12,,Southern Water,SWA001,Operational Services,Revenue,Water Services,Utilities
http://thanet.gov.uk/supplierspend,Thanet District Council,02/02/2016,400837,1170.14,,Southern Water,SWA001,Operational Services,Revenue,Water Services,Utilities
http://thanet.gov.uk/supplierspend,Thanet District Council,02/02/2016,400838,656.72,,Southern Water,SWA001,Operational Services,Revenue,Water Services,Utilities
http://thanet.gov.uk/supplierspend,Thanet District Council,02/02/2016,400839,323.45,,Southern Water,SWA001,Community Services,Revenue,Water Services,Utilities
http://thanet.gov.uk/supplierspend,Thanet District Council,02/02/2016,400952,525.80,,Southern Water,SWA001,Operational Services,Revenue,Water Services,Utilities
http://thanet.gov.uk/supplierspend,Thanet District Council,02/02/2016,400954,280.33,,Southern Water,SWA001,Operational Services,Revenue,Water Services,Utilities
http://thanet.gov.uk/supplierspend,Thanet District Council,02/02/2016,401289,5120.85,,Southern Water,SWA001,Operational Services,Revenue,Water Services,Utilities
http://thanet.gov.uk/supplierspend,Thanet District Council,02/02/2016,401290,546.88,,Southern Water,SWA001,Operational Services,Revenue,Water Services,Utilities
http://thanet.gov.uk/supplierspend,Thanet District Council,02/02/2016,400789,143859.85,,Standage & Co Limited,STA058,Corporate Resources and S151,Balance Sheet,Council Dwellings,Construction-Repair And Maint
http://thanet.gov.uk/supplierspend,Thanet District Council,02/02/2016,400790,33082.13,,Standage & Co Limited,STA058,Corporate Resources and S151,Balance Sheet,Council Dwellings,Construction-Repair And Maint
http://thanet.gov.uk/supplierspend,Thanet District Council,02/02/2016,400842,9696.80,,Standage & Co Limited,STA058,Corporate Resources and S151,Balance Sheet,Council Dwellings,Construction-Repair And Maint
http://thanet.gov.uk/supplierspend,Thanet District Council,02/02/2016,400843,98144.27,,Standage & Co Limited,STA058,Corporate Resources and S151,Balance Sheet,Council Dwellings,Construction-Repair And Maint
http://thanet.gov.uk/supplierspend,Thanet District Council,02/02/2016,400844,5148.25,,Standage & Co Limited,STA058,Corporate Resources and S151,Balance Sheet,Council Dwellings,Construction-Repair And Maint
http://thanet.gov.uk/supplierspend,Thanet District Council,02/02/2016,400845,12343.97,,Standage & Co Limited,STA058,Corporate Resources and S151,Balance Sheet,Council Dwellings,Construction-Repair And Maint
http://thanet.gov.uk/supplierspend,Thanet District Council,02/02/2016,400846,7273.84,,Standage & Co Limited,STA058,Corporate Resources and S151,Balance Sheet,Council Dwellings,Construction-Repair And Maint
http://thanet.gov.uk/supplierspend,Thanet District Council,02/02/2016,400847,23794.61,,Standage & Co Limited,STA058,Corporate Resources and S151,Balance Sheet,Council Dwellings,Construction-Repair And Maint
http://thanet.gov.uk/supplierspend,Thanet District Council,02/02/2016,400909,6507.80,,Tetlow King Planning Limited,TET002,Community Services,Revenue,Services,Consultancy
http://thanet.gov.uk/supplierspend,Thanet District Council,02/02/2016,401126,38.36,,Tfa Fuel Services Ltd,TFA003,Operational Services,Revenue,Direct Transport Costs,Utilities
http://thanet.gov.uk/supplierspend,Thanet District Council,02/02/2016,401126,622.56,,Tfa Fuel Services Ltd,TFA003,Operational Services,Revenue,"Equip, Furniture And Materials",Utilities
http://thanet.gov.uk/supplierspend,Thanet District Council,02/02/2016,401283,2400.00,,The Bradley Group Limited,BRA028,Community Services,Revenue,Expenses,Human Resources
http://thanet.gov.uk/supplierspend,Thanet District Council,02/02/2016,401428,5320.24,,Titan Lifts Ltd,TIT006,Corporate Resources and S151,Balance Sheet,Capital Exp-Non Council Assets,Facilities And Management Serv
http://thanet.gov.uk/supplierspend,Thanet District Council,02/02/2016,401031,316.99,,Total Supplies Ltd,TOT009,Corporate Resources and S151,Revenue,Cleaning & Domestic Supplies,Cleaning And Janitorial
http://thanet.gov.uk/supplierspend,Thanet District Council,02/02/2016,401430,15112.00,,Trueden Disability Adaptations Ltd,TRU012,Corporate Resources and S151,Balance Sheet,Capital Exp-Non Council Assets,Grants
http://thanet.gov.uk/supplierspend,Thanet District Council,02/02/2016,400678,415.00,,Uk Power Networks (Operations) Ltd,UKP001,Operational Services,Revenue,"Equip, Furniture And Materials",Utilities
http://thanet.gov.uk/supplierspend,Thanet District Council,02/02/2016,400827,780.00,,Westbury Industrial Supplies Ltd,WES042,Operational Services,Revenue,"Clothes, Uniforms & Laundry",Clothing
http://thanet.gov.uk/supplierspend,Thanet District Council,05/02/2016,401764,-276.92,,Sevenoaks District Council,SEV001,Corporate Resources and S151,Revenue,Housing Benefit - Rent Allow,Various Cats-Public Sector
http://thanet.gov.uk/supplierspend,Thanet District Council,09/02/2016,401439,617.53,,Adecco Uk Ltd,ADE005,Chief Executive,Revenue,Agency Staff,Human Resources
http://thanet.gov.uk/supplierspend,Thanet District Council,09/02/2016,401099,385.90,,Albion Fencing&Construction Kent Ltd,ALB005,Operational Services,Revenue,"Repairs,  Alter & Mtce - Build",Building Construction Material
http://thanet.gov.uk/supplierspend,Thanet District Council,09/02/2016,401405,2745.58,,Albion Fencing&Construction Kent Ltd,ALB005,Community Services,Revenue,"Repairs,  Alter & Mtce - Build",Building Construction Material
http://thanet.gov.uk/supplierspend,Thanet District Council,09/02/2016,402024,3280.33,,Albion Fencing&Construction Kent Ltd,ALB005,Operational Services,Revenue,"Repairs,  Alter & Mtce - Build",Building Construction Material
http://thanet.gov.uk/supplierspend,Thanet District Council,09/02/2016,401103,380.00,,All Sign Solutions Ltd,ALL002,Community Services,Revenue,"Equip, Furniture And Materials",Building Construction Material
http://thanet.gov.uk/supplierspend,Thanet District Council,09/02/2016,401046,1730.00,,Amber Driver Training,AMB004,Operational Services,Revenue,Training,Human Resources
http://thanet.gov.uk/supplierspend,Thanet District Council,09/02/2016,401620,330.00,,Andy Morris,MOR028,Community Services,Revenue,Services,Arts And Leisure Services
http://thanet.gov.uk/supplierspend,Thanet District Council,09/02/2016,401621,330.00,,Andy Morris,MOR028,Community Services,Revenue,Services,Arts And Leisure Services
http://thanet.gov.uk/supplierspend,Thanet District Council,09/02/2016,401444,995.00,,Archant Community Media Limited,ARC012,Community Services,Revenue,Miscellaneous Expenses,Facilities And Management Serv
http://thanet.gov.uk/supplierspend,Thanet District Council,09/02/2016,402018,5250.00,,Blackwood Bayne Ltd,BLA030,Community Services,Revenue,Services,Consultancy
http://thanet.gov.uk/supplierspend,Thanet District Council,09/02/2016,402007,6881.18,,Bramling Construction Ltd,BRA020,Corporate Resources and S151,Balance Sheet,Capital Exp-Non Council Assets,Grants
http://thanet.gov.uk/supplierspend,Thanet District Council,09/02/2016,401413,1590.00,,Bridge Security Cctv Ltd,BRI039,Community Services,Revenue,Services,Facilities And Management Serv
http://thanet.gov.uk/supplierspend,Thanet District Council,09/02/2016,401930,710.00,,Bt Payment Services Ltd,BTE003,Corporate Resources and S151,Revenue,Communications & Computing,ICT
http://thanet.gov.uk/supplierspend,Thanet District Council,09/02/2016,401931,680.25,,Bt Payment Services Ltd,BTE003,Operational Services,Revenue,Communications & Computing,ICT
http://thanet.gov.uk/supplierspend,Thanet District Council,09/02/2016,401932,695.00,,Bt Payment Services Ltd,BTE003,Corporate Resources and S151,Revenue,Communications & Computing,ICT
http://thanet.gov.uk/supplierspend,Thanet District Council,09/02/2016,400296,322.65,,Carol Peters,PET003,Community Services,Revenue,Services,Agency Payments
http://thanet.gov.uk/supplierspend,Thanet District Council,09/02/2016,401710,1500.00,,Caxtons Commercial Ltd,CAX006,Community Services,Revenue,Services,Consultancy
http://thanet.gov.uk/supplierspend,Thanet District Council,09/02/2016,402001,265.00,,Chartered Institute Of Housing,CHA008,Community Services,Revenue,Expenses,Human Resources
http://thanet.gov.uk/supplierspend,Thanet District Council,09/02/2016,402002,265.00,,Chartered Institute Of Housing,CHA008,Community Services,Revenue,Expenses,Human Resources
http://thanet.gov.uk/supplierspend,Thanet District Council,09/02/2016,401009,979.99,,Commercial Services Trading Ltd,COM048,Operational Services,Revenue,Cont Hire & Operating Lease,Various Cats-Public Sector
http://thanet.gov.uk/supplierspend,Thanet District Council,09/02/2016,401010,850.00,,Commercial Services Trading Ltd,COM048,Operational Services,Revenue,Cont Hire & Operating Lease,Various Cats-Public Sector
http://thanet.gov.uk/supplierspend,Thanet District Council,09/02/2016,401376,4071.55,,Commercial Services Trading Ltd,COM048,Community Services,Revenue,Cont Hire & Operating Lease,Various Cats-Public Sector
http://thanet.gov.uk/supplierspend,Thanet District Council,09/02/2016,401377,1068.48,,Commercial Services Trading Ltd,COM048,Operational Services,Revenue,Cont Hire & Operating Lease,Various Cats-Public Sector
http://thanet.gov.uk/supplierspend,Thanet District Council,09/02/2016,401663,5094.81,,Commercial Services Trading Ltd,COM048,Operational Services,Revenue,Cont Hire & Operating Lease,Various Cats-Public Sector
http://thanet.gov.uk/supplierspend,Thanet District Council,09/02/2016,401617,299.97,,Computerland Uk Limited,COM045,Operational Services,Revenue,"Equip, Furniture And Materials",ICT
http://thanet.gov.uk/supplierspend,Thanet District Council,09/02/2016,401410,98615.78,,Coombs (Canterbury) Ltd,COO033,Corporate Resources and S151,Balance Sheet,Other Land And Buildings-Hra,Construction-Repair And Maint
http://thanet.gov.uk/supplierspend,Thanet District Council,09/02/2016,401449,287.00,,Dave Hanna Electrical Services,HAN018,Corporate Resources and S151,Revenue,"Repairs,  Alter & Mtce - Build",ICT
http://thanet.gov.uk/supplierspend,Thanet District Council,09/02/2016,401339,245.33,,Dennis Eagle Ltd,DEN005,Operational Services,Revenue,Direct Transport Costs,Vehicle Management
http://thanet.gov.uk/supplierspend,Thanet District Council,09/02/2016,401350,4041.33,,Dha Planning Limited,DHA002,Community Services,Revenue,Services,Consultancy
http://thanet.gov.uk/supplierspend,Thanet District Council,09/02/2016,401409,327.00,,Diversified Business Comms Uk Ltd,DIV001,Community Services,Revenue,Miscellaneous Expenses,Facilities And Management Serv
http://thanet.gov.uk/supplierspend,Thanet District Council,09/02/2016,401285,286.62,,Dover District Council,DOV001,East Kent Shared Services,Revenue,Employee Related Schemes,Various Cats-Public Sector
http://thanet.gov.uk/supplierspend,Thanet District Council,09/02/2016,401373,517.45,,E Saunders Margate Ltd,SAU001,Operational Services,Revenue,"Repairs,  Alter & Mtce - Build",Construction-Repair And Maint
http://thanet.gov.uk/supplierspend,Thanet District Council,09/02/2016,400353,289.91,,E.On,EON001,Community Services,Revenue,Energy Costs,Utilities
http://thanet.gov.uk/supplierspend,Thanet District Council,09/02/2016,401724,709.50,,East Kent Components Ltd,EKC006,Operational Services,Revenue,Direct Transport Costs,Vehicle Management
http://thanet.gov.uk/supplierspend,Thanet District Council,09/02/2016,401467,454.63,,Edf Energy Customers Plc,EDF004,Community Services,Revenue,Energy Costs,Utilities
http://thanet.gov.uk/supplierspend,Thanet District Council,09/02/2016,401468,640.25,,Edf Energy Customers Plc,EDF004,Operational Services,Revenue,Energy Costs,Utilities
http://thanet.gov.uk/supplierspend,Thanet District Council,09/02/2016,401469,4308.16,,Edf Energy Customers Plc,EDF004,Operational Services,Revenue,Energy Costs,Utilities
http://thanet.gov.uk/supplierspend,Thanet District Council,09/02/2016,401686,802.60,,Edf Energy Customers Plc,EDF004,Operational Services,Revenue,Energy Costs,Utilities
http://thanet.gov.uk/supplierspend,Thanet District Council,09/02/2016,401687,743.17,,Edf Energy Customers Plc,SEE014,Community Services,Revenue,Energy Costs,Utilities
http://thanet.gov.uk/supplierspend,Thanet District Council,09/02/2016,402014,8801.39,,Evermech Services Ltd,EVE011,Corporate Resources and S151,Balance Sheet,Capital Exp-Non Council Assets,Grants
http://thanet.gov.uk/supplierspend,Thanet District Council,09/02/2016,401672,13300.06,,Facultatieve Technologies,FAC003,Operational Services,Revenue,"Repairs,  Alter & Mtce - Build",Cemetery And Crematorium
http://thanet.gov.uk/supplierspend,Thanet District Council,09/02/2016,402008,825.74,,Family Mosaic Housing,FAM001,Corporate Resources and S151,Balance Sheet,Capital Exp-Non Council Assets,Housing Management
http://thanet.gov.uk/supplierspend,Thanet District Council,09/02/2016,402009,1442.44,,Family Mosaic Housing,FAM001,Corporate Resources and S151,Balance Sheet,Capital Exp-Non Council Assets,Housing Management
http://thanet.gov.uk/supplierspend,Thanet District Council,09/02/2016,402011,328.96,,Family Mosaic Housing,FAM001,Corporate Resources and S151,Balance Sheet,Capital Exp-Non Council Assets,Housing Management
http://thanet.gov.uk/supplierspend,Thanet District Council,09/02/2016,402013,1224.40,,Family Mosaic Housing,FAM001,Corporate Resources and S151,Balance Sheet,Capital Exp-Non Council Assets,Housing Management
http://thanet.gov.uk/supplierspend,Thanet District Council,09/02/2016,402017,744.24,,Family Mosaic Housing,FAM001,Corporate Resources and S151,Balance Sheet,Capital Exp-Non Council Assets,Housing Management
http://thanet.gov.uk/supplierspend,Thanet District Council,09/02/2016,400642,983.95,,Hands-Free Computing Ltd,HAN009,East Kent Shared Services,Revenue,Communications & Computing,Health And Safety
http://thanet.gov.uk/supplierspend,Thanet District Council,09/02/2016,401628,250.10,,Haynes Of Maidstone Ltd,HAY008,Operational Services,Revenue,Direct Transport Costs,Vehicle Management
http://thanet.gov.uk/supplierspend,Thanet District Council,09/02/2016,400467,750.00,,Historic Metalwork Conservatn Co Ltd,HIS005,Corporate Resources and S151,Balance Sheet,Other Land And Buildings-Hra,Facilities And Management Serv
http://thanet.gov.uk/supplierspend,Thanet District Council,09/02/2016,400462,1130.72,,Hr Go (Kent) Ltd,HRG001,Operational Services,Revenue,Agency Staff,Human Resources
http://thanet.gov.uk/supplierspend,Thanet District Council,09/02/2016,400578,7405.22,,Hr Go (Kent) Ltd,HRG001,Operational Services,Revenue,Agency Staff,Human Resources
http://thanet.gov.uk/supplierspend,Thanet District Council,09/02/2016,400579,1903.81,,Hr Go (Kent) Ltd,HRG001,Operational Services,Revenue,Agency Staff,Human Resources
http://thanet.gov.uk/supplierspend,Thanet District Council,09/02/2016,400893,612.22,,Hr Go (Kent) Ltd,HRG001,Operational Services,Revenue,Agency Staff,Human Resources
http://thanet.gov.uk/supplierspend,Thanet District Council,09/02/2016,400941,1163.79,,Hr Go (Kent) Ltd,HRG001,Operational Services,Revenue,Agency Staff,Human Resources
http://thanet.gov.uk/supplierspend,Thanet District Council,09/02/2016,400980,1103.07,,Hr Go (Kent) Ltd,HRG001,Operational Services,Revenue,Agency Staff,Human Resources
http://thanet.gov.uk/supplierspend,Thanet District Council,09/02/2016,400984,432.53,,Hr Go (Kent) Ltd,HRG001,Operational Services,Revenue,Agency Staff,Human Resources
http://thanet.gov.uk/supplierspend,Thanet District Council,09/02/2016,401065,3402.42,,Hr Go (Kent) Ltd,HRG001,Operational Services,Revenue,Agency Staff,Human Resources
http://thanet.gov.uk/supplierspend,Thanet District Council,09/02/2016,401066,8300.67,,Hr Go (Kent) Ltd,HRG001,Operational Services,Revenue,Agency Staff,Human Resources
http://thanet.gov.uk/supplierspend,Thanet District Council,09/02/2016,401369,730.59,,Hr Go (Kent) Ltd,HRG001,Operational Services,Revenue,Agency Staff,Human Resources
http://thanet.gov.uk/supplierspend,Thanet District Council,09/02/2016,401399,432.53,,Hr Go (Kent) Ltd,HRG001,Operational Services,Revenue,Agency Staff,Human Resources
http://thanet.gov.uk/supplierspend,Thanet District Council,09/02/2016,401401,804.81,,Hr Go (Kent) Ltd,HRG001,Operational Services,Revenue,Agency Staff,Human Resources
http://thanet.gov.uk/supplierspend,Thanet District Council,09/02/2016,401403,486.55,,Hr Go (Kent) Ltd,HRG001,Operational Services,Revenue,Agency Staff,Human Resources
http://thanet.gov.uk/supplierspend,Thanet District Council,09/02/2016,401681,9214.80,,Hr Go (Kent) Ltd,HRG001,Operational Services,Revenue,Agency Staff,Human Resources
http://thanet.gov.uk/supplierspend,Thanet District Council,09/02/2016,401431,1250.00,,Idox Software  Limited,IDO001,Corporate Resources and S151,Balance Sheet,Plant And Equipment,ICT
http://thanet.gov.uk/supplierspend,Thanet District Council,09/02/2016,401422,390.00,,Irrv,IRR002,East Kent Shared Services,Revenue,Expenses,Human Resources
http://thanet.gov.uk/supplierspend,Thanet District Council,09/02/2016,401658,441.40,,Johnston Sweepers Ltd,JOH008,Operational Services,Revenue,Direct Transport Costs,Vehicle Management
http://thanet.gov.uk/supplierspend,Thanet District Council,09/02/2016,401309,338.40,,Kelway Ltd,KEL003,East Kent Shared Services,Revenue,Communications & Computing,ICT
http://thanet.gov.uk/supplierspend,Thanet District Council,09/02/2016,400862,245.81,,Kent County Council (Kcs),KCC003,Corporate Resources and S151,Revenue,"Equip, Furniture And Materials",Facilities And Management Serv
http://thanet.gov.uk/supplierspend,Thanet District Council,09/02/2016,402010,7037.00,,Kings Home Improvements,KIN023,Corporate Resources and S151,Balance Sheet,Capital Exp-Non Council Assets,Grants
http://thanet.gov.uk/supplierspend,Thanet District Council,09/02/2016,401284,50391.00,,Lister Wilder Limited,LIS002,Corporate Resources and S151,Balance Sheet,Plant And Equipment,Horticultural
http://thanet.gov.uk/supplierspend,Thanet District Council,09/02/2016,401633,376.00,,Lyreco Uk Limited,LYR001,Corporate Resources and S151,Revenue,"Print, Stat And Gen Off Exps",Stationery
http://thanet.gov.uk/supplierspend,Thanet District Council,09/02/2016,401341,270.00,,M D Electrics,MDE001,Community Services,Revenue,"Repairs,  Alter & Mtce - Build",Building Construction Material
http://thanet.gov.uk/supplierspend,Thanet District Council,09/02/2016,401629,4047.30,,M.T.S. Cleansing Services Ltd,MTS001,Operational Services,Revenue,"Repairs,  Alter & Mtce - Build",Environmental Services
http://thanet.gov.uk/supplierspend,Thanet District Council,09/02/2016,401630,1215.00,,M.T.S. Cleansing Services Ltd,MTS001,Operational Services,Revenue,"Repairs,  Alter & Mtce - Build",Environmental Services
http://thanet.gov.uk/supplierspend,Thanet District Council,09/02/2016,401358,19747.66,,Mears Ltd,MEA003,Corporate Resources and S151,Balance Sheet,Repairs And Mtce Holding A/C,Construction-Repair And Maint
http://thanet.gov.uk/supplierspend,Thanet District Council,09/02/2016,401359,94654.63,,Mears Ltd,MEA003,Corporate Resources and S151,Balance Sheet,Repairs And Mtce Holding A/C,Construction-Repair And Maint
http://thanet.gov.uk/supplierspend,Thanet District Council,09/02/2016,401360,2499.37,,Mears Ltd,MEA003,Corporate Resources and S151,Balance Sheet,Repairs And Mtce Holding A/C,Construction-Repair And Maint
http://thanet.gov.uk/supplierspend,Thanet District Council,09/02/2016,401361,35637.72,,Mears Ltd,MEA003,Corporate Resources and S151,Balance Sheet,Repairs And Mtce Holding A/C,Construction-Repair And Maint
http://thanet.gov.uk/supplierspend,Thanet District Council,09/02/2016,401700,582.75,,Morgan Jones Ltd,MOR001,Community Services,Revenue,Agency Staff,Human Resources
http://thanet.gov.uk/supplierspend,Thanet District Council,09/02/2016,401702,523.60,,Morgan Jones Ltd,MOR001,Corporate Resources and S151,Revenue,Agency Staff,Human Resources
http://thanet.gov.uk/supplierspend,Thanet District Council,09/02/2016,401618,2210.78,,National Express Ltd,NAT010,Community Services,Revenue,Services,Agency Payments
http://thanet.gov.uk/supplierspend,Thanet District Council,09/02/2016,400868,4477.00,,New Approach Contractors Ltd,NEW037,Operational Services,Revenue,"Repairs,  Alter & Mtce - Build",Construction-Repair And Maint
http://thanet.gov.uk/supplierspend,Thanet District Council,09/02/2016,401385,625.00,,Northgate Public Services (Uk) Ltd,NOR018,Community Services,Revenue,Communications & Computing,ICT
http://thanet.gov.uk/supplierspend,Thanet District Council,09/02/2016,400823,8250.00,,Nta Monitor Limited,NTA001,East Kent Shared Services,Revenue,Communications & Computing,ICT
http://thanet.gov.uk/supplierspend,Thanet District Council,09/02/2016,400905,797.69,,Ocs Group Uk Ltd T/A Fountains,OCS005,Corporate Resources and S151,Revenue,Cleaning & Domestic Supplies,Cleaning And Janitorial
http://thanet.gov.uk/supplierspend,Thanet District Council,09/02/2016,401086,295.18,,Orange Personal Communications Ltd,ORA002,Corporate Resources and S151,Revenue,Communications & Computing,ICT
http://thanet.gov.uk/supplierspend,Thanet District Council,09/02/2016,401600,1146.00,,Orbital Net Ltd,ORB008,East Kent Shared Services,Revenue,Communications & Computing,ICT
http://thanet.gov.uk/supplierspend,Thanet District Council,09/02/2016,401453,2675.35,,Phoenix Software Ltd,PHO002,Corporate Resources and S151,Revenue,Communications & Computing,ICT
http://thanet.gov.uk/supplierspend,Thanet District Council,09/02/2016,401123,420.24,,Probrand Ltd,PRO012,East Kent Shared Services,Revenue,Communications & Computing,ICT
http://thanet.gov.uk/supplierspend,Thanet District Council,09/02/2016,401408,2778.09,,Probrand Ltd,PRO012,East Kent Shared Services,Revenue,Communications & Computing,ICT
http://thanet.gov.uk/supplierspend,Thanet District Council,09/02/2016,401634,385.60,,Quinneys Fencing & Sect Building Man,QUI001,Operational Services,Revenue,"Equip, Furniture And Materials",Building Construction Material
http://thanet.gov.uk/supplierspend,Thanet District Council,09/02/2016,401384,420.00,,R Cannon,CAN007,Operational Services,Revenue,Services,Maritime Services
http://thanet.gov.uk/supplierspend,Thanet District Council,09/02/2016,401605,1320.00,,Reed Specialist Recruitment Ltd,REE015,East Kent Shared Services,Revenue,Agency Staff,Human Resources
http://thanet.gov.uk/supplierspend,Thanet District Council,09/02/2016,401662,3000.00,,Rostrvm Solutions Ltd,ROS019,East Kent Shared Services,Revenue,Communications & Computing,ICT
http://thanet.gov.uk/supplierspend,Thanet District Council,09/02/2016,401959,400.00,,Safety & Management Solutions Ltd,SAF013,Operational Services,Revenue,Services,Health And Safety
http://thanet.gov.uk/supplierspend,Thanet District Council,09/02/2016,401109,990.00,,Sellick Partnership Ltd,SEL011,Corporate Governance,Revenue,Agency Staff,Human Resources
http://thanet.gov.uk/supplierspend,Thanet District Council,09/02/2016,401627,963.00,,Sellick Partnership Ltd,SEL011,Corporate Governance,Revenue,Agency Staff,Human Resources
http://thanet.gov.uk/supplierspend,Thanet District Council,09/02/2016,401006,5770.00,,Sharpe Pritchard Llp,SHA030,Corporate Resources and S151,Balance Sheet,Other Land And Buildings-Hra,Legal Services
http://thanet.gov.uk/supplierspend,Thanet District Council,09/02/2016,400951,259.94,,Southern Electric,SEL007,Operational Services,Revenue,Energy Costs,Utilities
http://thanet.gov.uk/supplierspend,Thanet District Council,09/02/2016,401690,-259.94,,Southern Electric,SEL007,Operational Services,Revenue,Energy Costs,Utilities
http://thanet.gov.uk/supplierspend,Thanet District Council,09/02/2016,400652,14935.27,,Southern Water,SWA001,Community Services,Revenue,Water Services,Utilities
http://thanet.gov.uk/supplierspend,Thanet District Council,09/02/2016,401920,1951.17,,Southern Water,SWA001,Operational Services,Revenue,Water Services,Utilities
http://thanet.gov.uk/supplierspend,Thanet District Council,09/02/2016,401938,549.82,,Southern Water,SWA001,Community Services,Revenue,Water Services,Utilities
http://thanet.gov.uk/supplierspend,Thanet District Council,09/02/2016,401456,272.70,,Sparshatts Of Kent Ltd,SPA008,Operational Services,Revenue,Direct Transport Costs,Vehicle Management
http://thanet.gov.uk/supplierspend,Thanet District Council,09/02/2016,401434,235.00,,Standfast Burglar Alarm Co (Ek) Ltd,STA003,Corporate Resources and S151,Revenue,"Repairs,  Alter & Mtce - Build",Facilities And Management Serv
http://thanet.gov.uk/supplierspend,Thanet District Council,09/02/2016,402015,7031.80,,Trueden Disability Adaptations Ltd,TRU012,Corporate Resources and S151,Balance Sheet,Capital Exp-Non Council Assets,Grants
http://thanet.gov.uk/supplierspend,Thanet District Council,09/02/2016,402016,6202.00,,Trueden Disability Adaptations Ltd,TRU012,Corporate Resources and S151,Balance Sheet,Capital Exp-Non Council Assets,Grants
http://thanet.gov.uk/supplierspend,Thanet District Council,09/02/2016,401616,5500.00,,Vale Engineering (York) Limited,VAL008,Operational Services,Revenue,"Repairs,  Alter & Mtce - Build",Horticultural
http://thanet.gov.uk/supplierspend,Thanet District Council,09/02/2016,399973,232.56,,Viridor Waste Management Ltd,VIR003,Corporate Resources and S151,Revenue,Private Contractors,Environmental Services
http://thanet.gov.uk/supplierspend,Thanet District Council,09/02/2016,401580,36.72,,Viridor Waste Management Ltd,VIR003,Corporate Resources and S151,Revenue,Private Contractors,Environmental Services
http://thanet.gov.uk/supplierspend,Thanet District Council,09/02/2016,402006,850.00,,Your Leisure Kent Limited,YOU016,Community Services,Revenue,Grants & Subscriptions,Arts And Leisure Services
http://thanet.gov.uk/supplierspend,Thanet District Council,11/02/2016,401725,484.00,,All Access Ltd,ALL031,Community Services,Revenue,Services,Building Construction Material
http://thanet.gov.uk/supplierspend,Thanet District Council,11/02/2016,401675,6175.00,,Ass For Public Service Excellence,ASS013,Operational Services,Revenue,Services,Human Resources
http://thanet.gov.uk/supplierspend,Thanet District Council,11/02/2016,401680,320.00,,Astra Uk (Contracts) Ltd,AST003,Operational Services,Revenue,Cleaning & Domestic Supplies,Environmental Services
http://thanet.gov.uk/supplierspend,Thanet District Council,11/02/2016,401975,500.00,,Belinda Dixon Media Limited,DIX006,Community Services,Revenue,Services,ICT
http://thanet.gov.uk/supplierspend,Thanet District Council,11/02/2016,400301,11183.75,,Bidwells Llp,BID001,Corporate Resources and S151,Balance Sheet,Other Land And Buildings-Hra,Consultancy
http://thanet.gov.uk/supplierspend,Thanet District Council,11/02/2016,401753,810.00,,Buckingham Futures Limited,BUC010,Community Services,Revenue,Agency Staff,Human Resources
http://thanet.gov.uk/supplierspend,Thanet District Council,11/02/2016,401758,998.70,,Buckingham Futures Limited,BUC010,Community Services,Revenue,Agency Staff,Human Resources
http://thanet.gov.uk/supplierspend,Thanet District Council,11/02/2016,401792,813.31,,Canon (Uk) Ltd,CAN021,Corporate Resources and S151,Revenue,"Equip, Furniture And Materials",Facilities And Management Serv
http://thanet.gov.uk/supplierspend,Thanet District Council,11/02/2016,401366,1600.00,,Canterbury Scaffolding,CAN023,Corporate Resources and S151,Balance Sheet,Council Dwellings,Construction-Repair And Maint
http://thanet.gov.uk/supplierspend,Thanet District Council,11/02/2016,401367,1600.00,,Canterbury Scaffolding,CAN023,Corporate Resources and S151,Balance Sheet,Council Dwellings,Construction-Repair And Maint
http://thanet.gov.uk/supplierspend,Thanet District Council,11/02/2016,400786,700.00,,Casement Signs And Traffic,CAS001,Community Services,Revenue,Grants & Subscriptions,Street And Traffic Management
http://thanet.gov.uk/supplierspend,Thanet District Council,11/02/2016,401740,466.64,,Castle Automotive & Eng Supp Ltd,CAS024,Operational Services,Revenue,"Equip, Furniture And Materials",Vehicle Management
http://thanet.gov.uk/supplierspend,Thanet District Council,11/02/2016,401347,1891.45,,Channel Commercials Plc,CCO001,Operational Services,Revenue,Direct Transport Costs,Vehicle Management
http://thanet.gov.uk/supplierspend,Thanet District Council,11/02/2016,401779,1556.80,,Cobalt Telephone Technologies Ltd,COB002,Operational Services,Revenue,Services,ICT
http://thanet.gov.uk/supplierspend,Thanet District Council,11/02/2016,401664,-2278.66,,Commercial Services Trading Ltd,COM048,Operational Services,Revenue,Cont Hire & Operating Lease,Various Cats-Public Sector
http://thanet.gov.uk/supplierspend,Thanet District Council,11/02/2016,401939,2722.25,,Commercial Services Trading Ltd,COM048,Operational Services,Revenue,Cont Hire & Operating Lease,Various Cats-Public Sector
http://thanet.gov.uk/supplierspend,Thanet District Council,11/02/2016,401771,1540.00,,Disclosure And Barring Service,DIS017,Community Services,Revenue,"Equip, Furniture And Materials",Human Resources
http://thanet.gov.uk/supplierspend,Thanet District Council,11/02/2016,402164,2325.00,,Dr Alexander Marshall,MAR100,Operational Services,Revenue,Services,Cemetery And Crematorium
http://thanet.gov.uk/supplierspend,Thanet District Council,11/02/2016,402163,1700.00,,Dr R K Chhabra,CHH001,Operational Services,Revenue,Services,Cemetery And Crematorium
http://thanet.gov.uk/supplierspend,Thanet District Council,11/02/2016,401592,-760.41,,Edf Energy Customers Plc,EDF004,Community Services,Revenue,Energy Costs,Utilities
http://thanet.gov.uk/supplierspend,Thanet District Council,11/02/2016,401594,1912.62,,Edf Energy Customers Plc,EDF004,Community Services,Revenue,Energy Costs,Utilities
http://thanet.gov.uk/supplierspend,Thanet District Council,11/02/2016,401595,760.41,,Edf Energy Customers Plc,EDF004,Community Services,Revenue,Energy Costs,Utilities
http://thanet.gov.uk/supplierspend,Thanet District Council,11/02/2016,400937,526.50,,Esri (Uk) Ltd,ESR001,Corporate Resources and S151,Revenue,Training,ICT
http://thanet.gov.uk/supplierspend,Thanet District Council,11/02/2016,401903,480.00,,Florence Court Hotel,FLO003,Community Services,Revenue,Services,Housing Management
http://thanet.gov.uk/supplierspend,Thanet District Council,11/02/2016,401905,930.00,,Florence Court Hotel,FLO003,Community Services,Revenue,Services,Housing Management
http://thanet.gov.uk/supplierspend,Thanet District Council,11/02/2016,401906,540.00,,Florence Court Hotel,FLO003,Community Services,Revenue,Services,Housing Management
http://thanet.gov.uk/supplierspend,Thanet District Council,11/02/2016,401907,930.00,,Florence Court Hotel,FLO003,Community Services,Revenue,Services,Housing Management
http://thanet.gov.uk/supplierspend,Thanet District Council,11/02/2016,401908,390.00,,Florence Court Hotel,FLO003,Community Services,Revenue,Services,Housing Management
http://thanet.gov.uk/supplierspend,Thanet District Council,11/02/2016,401909,930.00,,Florence Court Hotel,FLO003,Community Services,Revenue,Services,Housing Management
http://thanet.gov.uk/supplierspend,Thanet District Council,11/02/2016,402136,491.15,,Freight Transport Association,FRE007,Operational Services,Revenue,Direct Transport Costs,Human Resources
http://thanet.gov.uk/supplierspend,Thanet District Council,11/02/2016,401678,1882.00,,Gas Contract Services Ltd,GAS004,Corporate Resources and S151,Balance Sheet,Repairs And Mtce Holding A/C,Construction-Repair And Maint
http://thanet.gov.uk/supplierspend,Thanet District Council,11/02/2016,401970,409.32,,H E Municipal Engineering Ltd,HEM003,Operational Services,Revenue,Direct Transport Costs,Vehicle Management
http://thanet.gov.uk/supplierspend,Thanet District Council,11/02/2016,401971,272.32,,H E Municipal Engineering Ltd,HEM003,Operational Services,Revenue,Direct Transport Costs,Vehicle Management
http://thanet.gov.uk/supplierspend,Thanet District Council,11/02/2016,401852,1103.07,,Hr Go (Kent) Ltd,HRG001,Operational Services,Revenue,Agency Staff,Human Resources
http://thanet.gov.uk/supplierspend,Thanet District Council,11/02/2016,401853,432.53,,Hr Go (Kent) Ltd,HRG001,Operational Services,Revenue,Agency Staff,Human Resources
http://thanet.gov.uk/supplierspend,Thanet District Council,11/02/2016,401855,295.88,,Hr Go (Kent) Ltd,HRG001,Operational Services,Revenue,Agency Staff,Human Resources
http://thanet.gov.uk/supplierspend,Thanet District Council,11/02/2016,401966,9875.34,,Hr Go (Kent) Ltd,HRG001,Operational Services,Revenue,Agency Staff,Human Resources
http://thanet.gov.uk/supplierspend,Thanet District Council,11/02/2016,401967,2949.88,,Hr Go (Kent) Ltd,HRG001,Operational Services,Revenue,Agency Staff,Human Resources
http://thanet.gov.uk/supplierspend,Thanet District Council,11/02/2016,402234,572.78,,Hr Go (Kent) Ltd,HRG001,Operational Services,Revenue,Agency Staff,Human Resources
http://thanet.gov.uk/supplierspend,Thanet District Council,11/02/2016,402237,572.78,,Hr Go (Kent) Ltd,HRG001,Operational Services,Revenue,Agency Staff,Human Resources
http://thanet.gov.uk/supplierspend,Thanet District Council,11/02/2016,401787,1600.00,,J Rospo Building Contractors,ROS001,Corporate Resources and S151,Balance Sheet,Rechargeable Works,Construction-Repair And Maint
http://thanet.gov.uk/supplierspend,Thanet District Council,11/02/2016,401613,33922.47,,Key Pointing Ltd,KEY004,Corporate Resources and S151,Balance Sheet,Repairs And Mtce Holding A/C,Construction-Repair And Maint
http://thanet.gov.uk/supplierspend,Thanet District Council,11/02/2016,401812,690.12,,L W Burt & Son Ltd,BUR027,Corporate Resources and S151,Revenue,"Repairs,  Alter & Mtce - Build",Construction-Repair And Maint
http://thanet.gov.uk/supplierspend,Thanet District Council,11/02/2016,402174,3333.24,,Level 3 Communications (Uk) Ltd,LEV005,Corporate Resources and S151,Balance Sheet,Telephone Holding Account,ICT
http://thanet.gov.uk/supplierspend,Thanet District Council,11/02/2016,402241,312.00,,Maha Uk Ltd,MAH002,Operational Services,Revenue,"Equip, Furniture And Materials",ICT
http://thanet.gov.uk/supplierspend,Thanet District Council,11/02/2016,402026,238.20,,Main Man Supplies Ltd,MAI001,Operational Services,Revenue,"Clothes, Uniforms & Laundry",Clothing
http://thanet.gov.uk/supplierspend,Thanet District Council,11/02/2016,401867,300.00,,Maxwells Grounds Maintenance Ltd,MAX002,Community Services,Revenue,"Repairs,  Alter & Mtce - Build",Construction-Repair And Maint
http://thanet.gov.uk/supplierspend,Thanet District Council,11/02/2016,401745,2295.04,,Mears Ltd,MEA003,Operational Services,Revenue,"Repairs,  Alter & Mtce - Build",Construction-Repair And Maint
http://thanet.gov.uk/supplierspend,Thanet District Council,11/02/2016,401746,1168.90,,Mears Ltd,MEA003,Corporate Resources and S151,Revenue,"Equip, Furniture And Materials",Construction-Repair And Maint
http://thanet.gov.uk/supplierspend,Thanet District Council,11/02/2016,401746,1168.91,,Mears Ltd,MEA003,Community Services,Revenue,"Repairs,  Alter & Mtce - Build",Construction-Repair And Maint
http://thanet.gov.uk/supplierspend,Thanet District Council,11/02/2016,401752,1436.74,,Mears Ltd,MEA003,Corporate Resources and S151,Revenue,"Repairs,  Alter & Mtce - Build",Construction-Repair And Maint
http://thanet.gov.uk/supplierspend,Thanet District Council,11/02/2016,401781,701.19,,Mears Ltd,MEA003,Corporate Resources and S151,Revenue,"Repairs,  Alter & Mtce - Build",Construction-Repair And Maint
http://thanet.gov.uk/supplierspend,Thanet District Council,11/02/2016,402205,582.75,,Morgan Jones Ltd,MOR001,Community Services,Revenue,Agency Staff,Human Resources
http://thanet.gov.uk/supplierspend,Thanet District Council,11/02/2016,402208,523.60,,Morgan Jones Ltd,MOR001,Corporate Resources and S151,Revenue,Agency Staff,Human Resources
http://thanet.gov.uk/supplierspend,Thanet District Council,11/02/2016,401896,438.33,,Mr Darren Osborne,OSB008,Corporate Resources and S151,Revenue,Cleaning & Domestic Supplies,Cleaning And Janitorial
http://thanet.gov.uk/supplierspend,Thanet District Council,11/02/2016,401896,184.17,,Mr Darren Osborne,OSB008,Community Services,Revenue,Cleaning & Domestic Supplies,Cleaning And Janitorial
http://thanet.gov.uk/supplierspend,Thanet District Council,11/02/2016,401896,30.00,,Mr Darren Osborne,OSB008,Operational Services,Revenue,Cleaning & Domestic Supplies,Cleaning And Janitorial
http://thanet.gov.uk/supplierspend,Thanet District Council,11/02/2016,402020,1630.00,,Mr Philip Woolfe,WOO030,Operational Services,Revenue,Services,Legal Services
http://thanet.gov.uk/supplierspend,Thanet District Council,11/02/2016,402197,350.00,,Nayland Rock Hotels Ltd,NAY002,Community Services,Revenue,Services,Housing Management
http://thanet.gov.uk/supplierspend,Thanet District Council,11/02/2016,400938,297.64,,Orbis Protect Limited,ORB009,Community Services,Revenue,Services,Facilities And Management Serv
http://thanet.gov.uk/supplierspend,Thanet District Council,11/02/2016,401809,7624.75,,Ostia Consulting Limited,OST001,Community Services,Revenue,Services,Consultancy
http://thanet.gov.uk/supplierspend,Thanet District Council,11/02/2016,401808,3881.00,,Ray Hole Architects Ltd,HOL037,Corporate Resources and S151,Balance Sheet,Other Land And Buildings-Hra,Construction-Repair And Maint
http://thanet.gov.uk/supplierspend,Thanet District Council,11/02/2016,401956,360.00,,Rippleffect,RIP001,Community Services,Revenue,Communications & Computing,ICT
http://thanet.gov.uk/supplierspend,Thanet District Council,11/02/2016,400320,494.03,,Sba Ltd,SBA001,Operational Services,Revenue,"Clothes, Uniforms & Laundry",Clothing
http://thanet.gov.uk/supplierspend,Thanet District Council,11/02/2016,401882,1150.35,,Serco Ltd,SER002,Operational Services,Revenue,"Repairs,  Alter & Mtce - Build",Building Construction Material
http://thanet.gov.uk/supplierspend,Thanet District Council,11/02/2016,401980,2333.15,,Southern Water,SWA001,Operational Services,Revenue,Water Services,Utilities
http://thanet.gov.uk/supplierspend,Thanet District Council,11/02/2016,401983,302.15,,Southern Water,SWA001,Operational Services,Revenue,Water Services,Utilities
http://thanet.gov.uk/supplierspend,Thanet District Council,11/02/2016,401984,724.77,,Southern Water,SWA001,Operational Services,Revenue,Water Services,Utilities
http://thanet.gov.uk/supplierspend,Thanet District Council,11/02/2016,401985,429.63,,Southern Water,SWA001,Operational Services,Revenue,Water Services,Utilities
http://thanet.gov.uk/supplierspend,Thanet District Council,11/02/2016,401709,24981.77,,Swale Heating Ltd,SWA006,Corporate Resources and S151,Balance Sheet,Repairs And Mtce Holding A/C,Building Construction Material
http://thanet.gov.uk/supplierspend,Thanet District Council,11/02/2016,401739,22829.96,,Swale Heating Ltd,SWA006,Corporate Resources and S151,Balance Sheet,Repairs And Mtce Holding A/C,Building Construction Material
http://thanet.gov.uk/supplierspend,Thanet District Council,11/02/2016,401919,18887.47,,Swale Heating Ltd,SWA006,Corporate Resources and S151,Balance Sheet,Repairs And Mtce Holding A/C,Building Construction Material
http://thanet.gov.uk/supplierspend,Thanet District Council,11/02/2016,401660,4229.15,,The Glenwood Hotel,GLE007,Community Services,Revenue,Services,Housing Management
http://thanet.gov.uk/supplierspend,Thanet District Council,11/02/2016,401961,3041.64,,The Glenwood Hotel,GLE007,Community Services,Revenue,Services,Housing Management
http://thanet.gov.uk/supplierspend,Thanet District Council,11/02/2016,401962,2020.83,,The Glenwood Hotel,GLE007,Community Services,Revenue,Services,Housing Management
http://thanet.gov.uk/supplierspend,Thanet District Council,11/02/2016,401891,267.33,,Viridor Waste Management Ltd,VIR003,Corporate Resources and S151,Revenue,Private Contractors,Environmental Services
http://thanet.gov.uk/supplierspend,Thanet District Council,11/02/2016,401895,312.30,,Viridor Waste Management Ltd,VIR003,Community Services,Revenue,Cleaning & Domestic Supplies,Environmental Services
http://thanet.gov.uk/supplierspend,Thanet District Council,11/02/2016,401960,220.00,,W Brazil & Bros,BRA001,Corporate Resources and S151,Balance Sheet,Repairs And Mtce Holding A/C,Environmental Services
http://thanet.gov.uk/supplierspend,Thanet District Council,11/02/2016,401604,544.75,,Wyzrds Co Ltd,WYZ001,Operational Services,Revenue,"Equip, Furniture And Materials",Stationery
http://thanet.gov.uk/supplierspend,Thanet District Council,16/02/2016,401884,4980.00,,Academia Ltd,ACA008,Corporate Resources and S151,Revenue,Communications & Computing,ICT
http://thanet.gov.uk/supplierspend,Thanet District Council,16/02/2016,401885,3375.00,,Academia Ltd,ACA008,Corporate Resources and S151,Revenue,Communications & Computing,ICT
http://thanet.gov.uk/supplierspend,Thanet District Council,16/02/2016,401886,2000.00,,Academia Ltd,ACA008,Corporate Resources and S151,Revenue,Communications & Computing,ICT
http://thanet.gov.uk/supplierspend,Thanet District Council,16/02/2016,401887,679.80,,Academia Ltd,ACA008,Corporate Resources and S151,Revenue,Communications & Computing,ICT
http://thanet.gov.uk/supplierspend,Thanet District Council,16/02/2016,401871,1462.50,,Advanced Business Solutions,COA011,Corporate Resources and S151,Revenue,Communications & Computing,ICT
http://thanet.gov.uk/supplierspend,Thanet District Council,16/02/2016,402209,725.00,,All About Asbestos Limited,ALL044,Community Services,Revenue,"Repairs,  Alter & Mtce - Build",Environmental Services
http://thanet.gov.uk/supplierspend,Thanet District Council,16/02/2016,402395,10200.00,,Bramling Construction Ltd,BRA020,Corporate Resources and S151,Balance Sheet,Capital Exp-Non Council Assets,Grants
http://thanet.gov.uk/supplierspend,Thanet District Council,16/02/2016,402398,5728.70,,Bramling Construction Ltd,BRA020,Corporate Resources and S151,Balance Sheet,Capital Exp-Non Council Assets,Grants
http://thanet.gov.uk/supplierspend,Thanet District Council,16/02/2016,402404,6381.52,,Bramling Construction Ltd,BRA020,Corporate Resources and S151,Balance Sheet,Capital Exp-Non Council Assets,Grants
http://thanet.gov.uk/supplierspend,Thanet District Council,16/02/2016,402289,716.40,,Buckingham Futures Limited,BUC010,Community Services,Revenue,Agency Staff,Human Resources
http://thanet.gov.uk/supplierspend,Thanet District Council,16/02/2016,402291,1238.00,,Buckingham Futures Limited,BUC010,Community Services,Revenue,Agency Staff,Human Resources
http://thanet.gov.uk/supplierspend,Thanet District Council,16/02/2016,401813,1942.46,,Canon (Uk) Ltd,CAN021,Corporate Resources and S151,Revenue,"Equip, Furniture And Materials",Facilities And Management Serv
http://thanet.gov.uk/supplierspend,Thanet District Council,16/02/2016,402176,2913.48,,Canon (Uk) Ltd,CAN021,Corporate Resources and S151,Revenue,"Equip, Furniture And Materials",Facilities And Management Serv
http://thanet.gov.uk/supplierspend,Thanet District Council,16/02/2016,402177,5229.57,,Canon (Uk) Ltd,CAN021,Corporate Resources and S151,Revenue,"Equip, Furniture And Materials",Facilities And Management Serv
http://thanet.gov.uk/supplierspend,Thanet District Council,16/02/2016,402443,1262.41,,Canon (Uk) Ltd,CAN021,Corporate Resources and S151,Revenue,"Equip, Furniture And Materials",Facilities And Management Serv
http://thanet.gov.uk/supplierspend,Thanet District Council,16/02/2016,402256,1728.20,,Canterbury City Council,CAN004,Corporate Resources and S151,Balance Sheet,Capital Exp-Non Council Assets,Various Cats-Public Sector
http://thanet.gov.uk/supplierspend,Thanet District Council,16/02/2016,402214,9000.00,,Capita Resourcing Ltd,CAP007,Corporate Resources and S151,Revenue,Agency Staff,Human Resources
http://thanet.gov.uk/supplierspend,Thanet District Council,16/02/2016,401711,2250.00,,Caxtons Commercial Ltd,CAX006,Community Services,Revenue,Services,Consultancy
http://thanet.gov.uk/supplierspend,Thanet District Council,16/02/2016,402292,9675.00,,Civica Uk Ltd,CIV003,East Kent Shared Services,Revenue,Communications & Computing,ICT
http://thanet.gov.uk/supplierspend,Thanet District Council,16/02/2016,402293,9150.00,,Civica Uk Ltd,CIV003,East Kent Shared Services,Revenue,Communications & Computing,ICT
http://thanet.gov.uk/supplierspend,Thanet District Council,16/02/2016,402421,270.00,,Civica Uk Ltd,CIV003,Community Services,Revenue,Expenses,ICT
http://thanet.gov.uk/supplierspend,Thanet District Council,16/02/2016,402141,5816.47,,Computerland Uk Limited,COM045,Corporate Resources and S151,Revenue,Communications & Computing,ICT
http://thanet.gov.uk/supplierspend,Thanet District Council,16/02/2016,401950,31450.25,,Crown Estate,CRO022,Operational Services,Revenue,Rents,Maritime Services
http://thanet.gov.uk/supplierspend,Thanet District Council,16/02/2016,401951,25264.75,,Crown Estate,CRO022,Operational Services,Revenue,Rents,Maritime Services
http://thanet.gov.uk/supplierspend,Thanet District Council,16/02/2016,401390,106186.19,,Dcb (Kent) Ltd,DCB001,Corporate Resources and S151,Balance Sheet,Repairs And Mtce Holding A/C,Construction-Repair And Maint
http://thanet.gov.uk/supplierspend,Thanet District Council,16/02/2016,401391,5764.17,,Dcb (Kent) Ltd,DCB001,Corporate Resources and S151,Balance Sheet,Repairs And Mtce Holding A/C,Construction-Repair And Maint
http://thanet.gov.uk/supplierspend,Thanet District Council,16/02/2016,401392,2887.50,,Dcb (Kent) Ltd,DCB001,Corporate Resources and S151,Balance Sheet,Repairs And Mtce Holding A/C,Construction-Repair And Maint
http://thanet.gov.uk/supplierspend,Thanet District Council,16/02/2016,401393,15633.82,,Dcb (Kent) Ltd,DCB001,Corporate Resources and S151,Balance Sheet,Repairs And Mtce Holding A/C,Construction-Repair And Maint
http://thanet.gov.uk/supplierspend,Thanet District Council,16/02/2016,401351,360.00,,Dover Counselling Centre,DOV014,Corporate Resources and S151,Revenue,Employee Related Schemes,Healthcare
http://thanet.gov.uk/supplierspend,Thanet District Council,16/02/2016,402134,710.00,,Dribbly Drops Plumbing Services,DRI003,Corporate Resources and S151,Balance Sheet,Repairs And Mtce Holding A/C,Building Construction Material
http://thanet.gov.uk/supplierspend,Thanet District Council,16/02/2016,401924,355.63,,Edf Energy Customers Plc,EDF004,Community Services,Revenue,Energy Costs,Utilities
http://thanet.gov.uk/supplierspend,Thanet District Council,16/02/2016,402179,-355.63,,Edf Energy Customers Plc,EDF004,Community Services,Revenue,Energy Costs,Utilities
http://thanet.gov.uk/supplierspend,Thanet District Council,16/02/2016,402465,380.72,,Edf Energy Customers Plc,EDF004,Community Services,Revenue,Energy Costs,Utilities
http://thanet.gov.uk/supplierspend,Thanet District Council,16/02/2016,402266,7874.61,,Eks Office Equipment,EKS004,Corporate Resources and S151,Revenue,"Equip, Furniture And Materials",Furniture And Soft Furnishings
http://thanet.gov.uk/supplierspend,Thanet District Council,16/02/2016,401736,796.00,,Estuary Services Ltd,EST002,Operational Services,Revenue,Cont Hire & Operating Lease,Maritime Services
http://thanet.gov.uk/supplierspend,Thanet District Council,16/02/2016,402394,10743.97,,Evermech Services Ltd,EVE011,Corporate Resources and S151,Balance Sheet,Capital Exp-Non Council Assets,Grants
http://thanet.gov.uk/supplierspend,Thanet District Council,16/02/2016,401637,287.66,,Evoke Supplies Limited,EVO001,Operational Services,Revenue,"Repairs,  Alter & Mtce - Build",Building Construction Material
http://thanet.gov.uk/supplierspend,Thanet District Council,16/02/2016,400994,1368.05,,F R Jones & Son,JON020,Operational Services,Revenue,"Equip, Furniture And Materials",Horticultural
http://thanet.gov.uk/supplierspend,Thanet District Council,16/02/2016,402392,1023.78,,Family Mosaic Housing,FAM001,Corporate Resources and S151,Balance Sheet,Capital Exp-Non Council Assets,Housing Management
http://thanet.gov.uk/supplierspend,Thanet District Council,16/02/2016,402397,687.44,,Family Mosaic Housing,FAM001,Corporate Resources and S151,Balance Sheet,Capital Exp-Non Council Assets,Housing Management
http://thanet.gov.uk/supplierspend,Thanet District Council,16/02/2016,402399,1023.74,,Family Mosaic Housing,FAM001,Corporate Resources and S151,Balance Sheet,Capital Exp-Non Council Assets,Housing Management
http://thanet.gov.uk/supplierspend,Thanet District Council,16/02/2016,402403,934.60,,Family Mosaic Housing,FAM001,Corporate Resources and S151,Balance Sheet,Capital Exp-Non Council Assets,Housing Management
http://thanet.gov.uk/supplierspend,Thanet District Council,16/02/2016,401972,963.98,,G & G Forklifts,GGF001,Operational Services,Revenue,"Equip, Furniture And Materials",Vehicle Management
http://thanet.gov.uk/supplierspend,Thanet District Council,16/02/2016,402211,2500.00,,G Warrington & Sons Limited,WAR022,Corporate Resources and S151,Balance Sheet,Other Land And Buildings-Hra,Financial Services
http://thanet.gov.uk/supplierspend,Thanet District Council,16/02/2016,401860,799.00,,Hbinfo Limited,HBI001,East Kent Shared Services,Revenue,Grants & Subscriptions,Financial Services
http://thanet.gov.uk/supplierspend,Thanet District Council,16/02/2016,401968,1100.00,,Hi Way Services Ltd,HIW002,Operational Services,Revenue,"Repairs,  Alter & Mtce - Build",Highway Equipment And Material
http://thanet.gov.uk/supplierspend,Thanet District Council,16/02/2016,402249,66652.79,,Homes & Communities Agency,HOM013,Corporate Resources and S151,Balance Sheet,Hca Grant Funded Projects,Government Agencies
http://thanet.gov.uk/supplierspend,Thanet District Council,16/02/2016,400983,1660.51,,Hr Go (Kent) Ltd,HRG001,Operational Services,Revenue,Agency Staff,Human Resources
http://thanet.gov.uk/supplierspend,Thanet District Council,16/02/2016,401667,2808.21,,Hr Go (Kent) Ltd,HRG001,Operational Services,Revenue,Agency Staff,Human Resources
http://thanet.gov.uk/supplierspend,Thanet District Council,16/02/2016,402435,486.55,,Hr Go (Kent) Ltd,HRG001,Operational Services,Revenue,Agency Staff,Human Resources
http://thanet.gov.uk/supplierspend,Thanet District Council,16/02/2016,402436,432.53,,Hr Go (Kent) Ltd,HRG001,Operational Services,Revenue,Agency Staff,Human Resources
http://thanet.gov.uk/supplierspend,Thanet District Council,16/02/2016,402439,1103.07,,Hr Go (Kent) Ltd,HRG001,Operational Services,Revenue,Agency Staff,Human Resources
http://thanet.gov.uk/supplierspend,Thanet District Council,16/02/2016,402444,9865.93,,Hr Go (Kent) Ltd,HRG001,Operational Services,Revenue,Agency Staff,Human Resources
http://thanet.gov.uk/supplierspend,Thanet District Council,16/02/2016,402445,3100.11,,Hr Go (Kent) Ltd,HRG001,Operational Services,Revenue,Agency Staff,Human Resources
http://thanet.gov.uk/supplierspend,Thanet District Council,16/02/2016,401747,3137.13,,Hydraulic & Engineering Servs Ltd,HYD011,Operational Services,Revenue,"Repairs,  Alter & Mtce - Build",Vehicle Management
http://thanet.gov.uk/supplierspend,Thanet District Council,16/02/2016,402388,695.50,,John Gale,GAL001,Corporate Resources and S151,Balance Sheet,Capital Exp-Non Council Assets,Grants
http://thanet.gov.uk/supplierspend,Thanet District Council,16/02/2016,402391,611.00,,John Gale,GAL001,Corporate Resources and S151,Balance Sheet,Capital Exp-Non Council Assets,Grants
http://thanet.gov.uk/supplierspend,Thanet District Council,16/02/2016,402401,534.50,,John Gale,GAL001,Corporate Resources and S151,Balance Sheet,Capital Exp-Non Council Assets,Grants
http://thanet.gov.uk/supplierspend,Thanet District Council,16/02/2016,401943,360.00,,Kan-Doo Timber Supplies Ltd,KAN002,Operational Services,Revenue,"Repairs,  Alter & Mtce - Build",Building Construction Material
http://thanet.gov.uk/supplierspend,Thanet District Council,16/02/2016,402273,380.85,,Kent County Council (Kcs),KCC003,Community Services,Revenue,Energy Costs,Facilities And Management Serv
http://thanet.gov.uk/supplierspend,Thanet District Council,16/02/2016,402274,2465.38,,Kent County Council (Kcs),KCC003,Corporate Resources and S151,Revenue,Energy Costs,Facilities And Management Serv
http://thanet.gov.uk/supplierspend,Thanet District Council,16/02/2016,402275,561.52,,Kent County Council (Kcs),KCC003,Operational Services,Revenue,Energy Costs,Facilities And Management Serv
http://thanet.gov.uk/supplierspend,Thanet District Council,16/02/2016,402277,693.74,,Kent County Council (Kcs),KCC003,Operational Services,Revenue,Energy Costs,Facilities And Management Serv
http://thanet.gov.uk/supplierspend,Thanet District Council,16/02/2016,402279,1369.46,,Kent County Council (Kcs),KCC003,Community Services,Revenue,Energy Costs,Facilities And Management Serv
http://thanet.gov.uk/supplierspend,Thanet District Council,16/02/2016,402281,1512.35,,Kent County Council (Kcs),KCC003,Corporate Resources and S151,Revenue,Energy Costs,Facilities And Management Serv
http://thanet.gov.uk/supplierspend,Thanet District Council,16/02/2016,402284,2046.29,,Kent County Council (Kcs),KCC003,Operational Services,Revenue,Energy Costs,Facilities And Management Serv
http://thanet.gov.uk/supplierspend,Thanet District Council,16/02/2016,402471,300.00,,Learn2bfit Foundation,LEA027,Community Services,Revenue,Grants & Subscriptions,Grants
http://thanet.gov.uk/supplierspend,Thanet District Council,16/02/2016,401668,3040.00,,Lee Evans Partnership Llp,LEE007,Community Services,Revenue,Services,Consultancy
http://thanet.gov.uk/supplierspend,Thanet District Council,16/02/2016,401715,296.40,,Ling Metals Limited,LIN004,Operational Services,Revenue,Cleaning & Domestic Supplies,Environmental Services
http://thanet.gov.uk/supplierspend,Thanet District Council,16/02/2016,401793,238.03,,Lister Wilder Limited,LIS002,Operational Services,Revenue,"Repairs,  Alter & Mtce - Build",Horticultural
http://thanet.gov.uk/supplierspend,Thanet District Council,16/02/2016,402470,435.00,,Llg Enterprises Limited,LLG001,Corporate Governance,Revenue,Expenses,Human Resources
http://thanet.gov.uk/supplierspend,Thanet District Council,16/02/2016,401093,145.10,,Lyreco Uk Limited,LYR001,Corporate Resources and S151,Revenue,"Equip, Furniture And Materials",Stationery
http://thanet.gov.uk/supplierspend,Thanet District Council,16/02/2016,401093,7.98,,Lyreco Uk Limited,LYR001,Community Services,Revenue,"Clothes, Uniforms & Laundry",Stationery
http://thanet.gov.uk/supplierspend,Thanet District Council,16/02/2016,401093,9.00,,Lyreco Uk Limited,LYR001,Community Services,Revenue,"Print, Stat And Gen Off Exps",Stationery
http://thanet.gov.uk/supplierspend,Thanet District Council,16/02/2016,401093,145.66,,Lyreco Uk Limited,LYR001,Operational Services,Revenue,"Print, Stat And Gen Off Exps",Stationery
http://thanet.gov.uk/supplierspend,Thanet District Council,16/02/2016,401411,273.64,,Lyreco Uk Limited,LYR001,Operational Services,Revenue,"Print, Stat And Gen Off Exps",Stationery
http://thanet.gov.uk/supplierspend,Thanet District Council,16/02/2016,402299,376.00,,Lyreco Uk Limited,LYR001,Corporate Resources and S151,Revenue,"Print, Stat And Gen Off Exps",Stationery
http://thanet.gov.uk/supplierspend,Thanet District Council,16/02/2016,402159,395.13,,Mears Ltd,MEA003,Corporate Resources and S151,Revenue,"Repairs,  Alter & Mtce - Build",Construction-Repair And Maint
http://thanet.gov.uk/supplierspend,Thanet District Council,16/02/2016,402311,1584.66,,Mears Ltd,MEA003,Operational Services,Revenue,"Repairs,  Alter & Mtce - Build",Construction-Repair And Maint
http://thanet.gov.uk/supplierspend,Thanet District Council,16/02/2016,402162,4035.38,,Med Clean South Ltd,MED015,Operational Services,Revenue,Cleaning & Domestic Supplies,Cleaning And Janitorial
http://thanet.gov.uk/supplierspend,Thanet District Council,16/02/2016,402384,5270.00,,Milmer Consulting Limited,MIL046,Operational Services,Revenue,Services,Environmental Services
http://thanet.gov.uk/supplierspend,Thanet District Council,16/02/2016,401701,572.22,,Morgan Jones Ltd,MOR001,Corporate Resources and S151,Revenue,Agency Staff,Human Resources
http://thanet.gov.uk/supplierspend,Thanet District Council,16/02/2016,402206,534.82,,Morgan Jones Ltd,MOR001,Corporate Resources and S151,Revenue,Agency Staff,Human Resources
http://thanet.gov.uk/supplierspend,Thanet District Council,16/02/2016,402207,336.76,,Morgana Systems Ltd,MOR005,Corporate Resources and S151,Revenue,"Print, Stat And Gen Off Exps",Facilities And Management Serv
http://thanet.gov.uk/supplierspend,Thanet District Council,16/02/2016,402216,445.00,,Mrs K Hooper,HOO004,Corporate Resources and S151,Revenue,Services,Consultancy
http://thanet.gov.uk/supplierspend,Thanet District Council,16/02/2016,401050,350.00,,Nayland Rock Hotels Ltd,NAY002,Community Services,Revenue,Services,Housing Management
http://thanet.gov.uk/supplierspend,Thanet District Council,16/02/2016,402440,2000.00,,Neopost Ltd Credifon,NEO002,Corporate Resources and S151,Revenue,Communications & Computing,Mail Services
http://thanet.gov.uk/supplierspend,Thanet District Council,16/02/2016,401810,4245.50,,Newton Forge Ltd,NEW042,Corporate Resources and S151,Balance Sheet,Other Land And Buildings-Hra,Consultancy
http://thanet.gov.uk/supplierspend,Thanet District Council,16/02/2016,401738,407.00,,Noisemeters Limited,NOI001,Operational Services,Revenue,"Repairs,  Alter & Mtce - Build",Horticultural
http://thanet.gov.uk/supplierspend,Thanet District Council,16/02/2016,402402,6414.00,,Northwood Builders,NOR002,Corporate Resources and S151,Balance Sheet,Capital Exp-Non Council Assets,Grants
http://thanet.gov.uk/supplierspend,Thanet District Council,16/02/2016,402238,1415.75,,Oracle Corporation Uk Ltd,ORA001,East Kent Shared Services,Revenue,Communications & Computing,ICT
http://thanet.gov.uk/supplierspend,Thanet District Council,16/02/2016,402262,5770.58,,Oracle Corporation Uk Ltd,ORA001,East Kent Shared Services,Revenue,Communications & Computing,ICT
http://thanet.gov.uk/supplierspend,Thanet District Council,16/02/2016,402387,603.75,,Osborne Richardson Limited,OSB009,Community Services,Revenue,Agency Staff,Human Resources
http://thanet.gov.uk/supplierspend,Thanet District Council,16/02/2016,401913,1117.99,,Peer 1 (Uk) Limited,PEE003,East Kent Shared Services,Revenue,Communications & Computing,ICT
http://thanet.gov.uk/supplierspend,Thanet District Council,16/02/2016,401601,562.50,,Pierremonts Car & Van Hire Ltd,PIE009,Operational Services,Revenue,Miscellaneous Expenses,Vehicle Management
http://thanet.gov.uk/supplierspend,Thanet District Council,16/02/2016,401734,848.25,,Profile Security Services Limited,PRO018,Operational Services,Revenue,Services,Facilities And Management Serv
http://thanet.gov.uk/supplierspend,Thanet District Council,16/02/2016,402294,1125.00,,Puls Global Ltd,PUL006,Operational Services,Revenue,"Equip, Furniture And Materials",Facilities And Management Serv
http://thanet.gov.uk/supplierspend,Thanet District Council,16/02/2016,402296,2054.00,,Puls Global Ltd,PUL006,Operational Services,Revenue,"Equip, Furniture And Materials",Facilities And Management Serv
http://thanet.gov.uk/supplierspend,Thanet District Council,16/02/2016,402307,450.00,,R Cannon,CAN007,Operational Services,Revenue,Services,Maritime Services
http://thanet.gov.uk/supplierspend,Thanet District Council,16/02/2016,401912,1320.00,,Reed Specialist Recruitment Ltd,REE015,East Kent Shared Services,Revenue,Agency Staff,Human Resources
http://thanet.gov.uk/supplierspend,Thanet District Council,16/02/2016,400997,450.00,,Rippleffect,RIP001,Community Services,Revenue,Communications & Computing,ICT
http://thanet.gov.uk/supplierspend,Thanet District Council,16/02/2016,401763,900.00,,Rmi Engineering Limited,RMI001,Operational Services,Revenue,"Equip, Furniture And Materials",Maritime Services
http://thanet.gov.uk/supplierspend,Thanet District Council,16/02/2016,401948,1435.00,,Rolec Services Limited,ROL001,Operational Services,Revenue,"Equip, Furniture And Materials",Building Construction Material
http://thanet.gov.uk/supplierspend,Thanet District Council,16/02/2016,401870,212.50,,Sba Ltd,SBA001,Operational Services,Revenue,"Repairs,  Alter & Mtce - Build",Clothing
http://thanet.gov.uk/supplierspend,Thanet District Council,16/02/2016,401772,240.00,,Seaward Color Copy Ltd,SEA001,Community Services,Revenue,"Print, Stat And Gen Off Exps",Facilities And Management Serv
http://thanet.gov.uk/supplierspend,Thanet District Council,16/02/2016,402389,6955.00,,South East Building Company Limited,SEB001,Corporate Resources and S151,Balance Sheet,Capital Exp-Non Council Assets,Grants
http://thanet.gov.uk/supplierspend,Thanet District Council,16/02/2016,402396,13480.00,,South East Building Company Limited,SEB001,Corporate Resources and S151,Balance Sheet,Capital Exp-Non Council Assets,Grants
http://thanet.gov.uk/supplierspend,Thanet District Council,16/02/2016,401829,255.20,,Southern Electric,SEL007,Operational Services,Revenue,Energy Costs,Utilities
http://thanet.gov.uk/supplierspend,Thanet District Council,16/02/2016,401830,208.47,,Southern Electric,SEL007,Operational Services,Revenue,Energy Costs,Utilities
http://thanet.gov.uk/supplierspend,Thanet District Council,16/02/2016,401834,4.41,,Southern Electric,SEL007,Community Services,Revenue,Energy Costs,Utilities
http://thanet.gov.uk/supplierspend,Thanet District Council,16/02/2016,401834,458.64,,Southern Electric,SEL007,Operational Services,Revenue,Energy Costs,Utilities
http://thanet.gov.uk/supplierspend,Thanet District Council,16/02/2016,401817,-1207.58,,Southern Water,SWA001,Operational Services,Revenue,Water Services,Utilities
http://thanet.gov.uk/supplierspend,Thanet District Council,16/02/2016,401835,530.30,,Southern Water,SWA001,Operational Services,Revenue,Water Services,Utilities
http://thanet.gov.uk/supplierspend,Thanet District Council,16/02/2016,401921,667.72,,Southern Water,SWA001,Operational Services,Revenue,Water Services,Utilities
http://thanet.gov.uk/supplierspend,Thanet District Council,16/02/2016,402195,921.66,,Southern Water,SWA001,Operational Services,Revenue,Water Services,Utilities
http://thanet.gov.uk/supplierspend,Thanet District Council,16/02/2016,402425,1603.37,,Southern Water,SWA001,Operational Services,Revenue,Water Services,Utilities
http://thanet.gov.uk/supplierspend,Thanet District Council,16/02/2016,402427,1275.24,,Southern Water,SWA001,Operational Services,Revenue,Water Services,Utilities
http://thanet.gov.uk/supplierspend,Thanet District Council,16/02/2016,402417,4375.00,,Standage & Co Limited,STA058,Community Services,Revenue,"Repairs,  Alter & Mtce - Build",Construction-Repair And Maint
http://thanet.gov.uk/supplierspend,Thanet District Council,16/02/2016,401969,4409.00,,Tetlow King Planning Limited,TET002,Community Services,Revenue,Services,Consultancy
http://thanet.gov.uk/supplierspend,Thanet District Council,16/02/2016,401048,2999.98,,The Glenwood Hotel,GLE007,Community Services,Revenue,Services,Housing Management
http://thanet.gov.uk/supplierspend,Thanet District Council,16/02/2016,401049,958.33,,The Glenwood Hotel,GLE007,Community Services,Revenue,Services,Housing Management
http://thanet.gov.uk/supplierspend,Thanet District Council,16/02/2016,401287,2437.49,,The Glenwood Hotel,GLE007,Community Services,Revenue,Services,Housing Management
http://thanet.gov.uk/supplierspend,Thanet District Council,16/02/2016,401659,1624.98,,The Glenwood Hotel,GLE007,Community Services,Revenue,Services,Housing Management
http://thanet.gov.uk/supplierspend,Thanet District Council,16/02/2016,402400,1666.00,,Titan Lifts Ltd,TIT006,Corporate Resources and S151,Balance Sheet,Capital Exp-Non Council Assets,Facilities And Management Serv
http://thanet.gov.uk/supplierspend,Thanet District Council,16/02/2016,402409,3000.00,,Tracksys Limited,TRA061,East Kent Shared Services,Revenue,"Equip, Furniture And Materials",ICT
http://thanet.gov.uk/supplierspend,Thanet District Council,16/02/2016,402409,750.00,,Tracksys Limited,TRA061,East Kent Shared Services,Revenue,Training,ICT
http://thanet.gov.uk/supplierspend,Thanet District Council,16/02/2016,402390,6022.80,,Trueden Disability Adaptations Ltd,TRU012,Corporate Resources and S151,Balance Sheet,Capital Exp-Non Council Assets,Grants
http://thanet.gov.uk/supplierspend,Thanet District Council,16/02/2016,402393,8498.19,,Trueden Disability Adaptations Ltd,TRU012,Corporate Resources and S151,Balance Sheet,Capital Exp-Non Council Assets,Grants
http://thanet.gov.uk/supplierspend,Thanet District Council,16/02/2016,402132,5000.00,,Tunbridge Wells Borough Council,TUN002,Corporate Resources and S151,Revenue,Grants & Subscriptions,Various Cats-Public Sector
http://thanet.gov.uk/supplierspend,Thanet District Council,16/02/2016,402132,5000.00,,Tunbridge Wells Borough Council,TUN002,East Kent Shared Services,Revenue,Services,Various Cats-Public Sector
http://thanet.gov.uk/supplierspend,Thanet District Council,16/02/2016,401897,80.67,,Veolia Es (Uk) Ltd,VEO001,Corporate Resources and S151,Balance Sheet,Rechargeable Works,Environmental Services
http://thanet.gov.uk/supplierspend,Thanet District Council,16/02/2016,401897,1663.02,,Veolia Es (Uk) Ltd,VEO001,Operational Services,Revenue,Cleaning & Domestic Supplies,Environmental Services
http://thanet.gov.uk/supplierspend,Thanet District Council,16/02/2016,401945,390.00,,W Brazil & Bros,BRA001,Operational Services,Revenue,Grounds Mtce Costs,Environmental Services
http://thanet.gov.uk/supplierspend,Thanet District Council,16/02/2016,401946,250.00,,W Brazil & Bros,BRA001,Operational Services,Revenue,"Repairs,  Alter & Mtce - Build",Environmental Services
http://thanet.gov.uk/supplierspend,Thanet District Council,16/02/2016,402251,945.00,,Weir & Carmichael Limited,WEI004,Operational Services,Revenue,"Equip, Furniture And Materials",Environmental Services
http://thanet.gov.uk/supplierspend,Thanet District Council,16/02/2016,402408,961.41,,Westgate On Sea Town Council,WES052,Operational Services,Revenue,Customer And Client Receipts,Various Cats-Public Sector
http://thanet.gov.uk/supplierspend,Thanet District Council,16/02/2016,401863,219.00,,Zen Internet Ltd,ZEN001,East Kent Shared Services,Revenue,Communications & Computing,ICT
http://thanet.gov.uk/supplierspend,Thanet District Council,17/02/2016,402202,539.72,,E Saunders Margate Ltd,SAU001,Operational Services,Revenue,"Repairs,  Alter & Mtce - Build",Construction-Repair And Maint
http://thanet.gov.uk/supplierspend,Thanet District Council,17/02/2016,402411,1259.69,,Kent County Council,KCC002,Corporate Resources and S151,Balance Sheet,Capital Exp-Non Council Assets,Various Cats-Public Sector
http://thanet.gov.uk/supplierspend,Thanet District Council,17/02/2016,402412,19589.10,,Kent County Council,KCC002,Corporate Resources and S151,Balance Sheet,Capital Exp-Non Council Assets,Various Cats-Public Sector
http://thanet.gov.uk/supplierspend,Thanet District Council,17/02/2016,402215,-13010.19,,Kent County Council (Kcs),KCC003,Community Services,Revenue,Energy Costs,Facilities And Management Serv
http://thanet.gov.uk/supplierspend,Thanet District Council,17/02/2016,402217,-9473.20,,Kent County Council (Kcs),KCC003,Community Services,Revenue,Energy Costs,Facilities And Management Serv
http://thanet.gov.uk/supplierspend,Thanet District Council,17/02/2016,402218,-12093.67,,Kent County Council (Kcs),KCC003,Community Services,Revenue,Energy Costs,Facilities And Management Serv
http://thanet.gov.uk/supplierspend,Thanet District Council,17/02/2016,402219,-14632.69,,Kent County Council (Kcs),KCC003,Community Services,Revenue,Energy Costs,Facilities And Management Serv
http://thanet.gov.uk/supplierspend,Thanet District Council,17/02/2016,402220,-8255.50,,Kent County Council (Kcs),KCC003,Community Services,Revenue,Energy Costs,Facilities And Management Serv
http://thanet.gov.uk/supplierspend,Thanet District Council,17/02/2016,402221,-9623.59,,Kent County Council (Kcs),KCC003,Community Services,Revenue,Energy Costs,Facilities And Management Serv
http://thanet.gov.uk/supplierspend,Thanet District Council,17/02/2016,402222,11727.22,,Kent County Council (Kcs),KCC003,Community Services,Revenue,Energy Costs,Facilities And Management Serv
http://thanet.gov.uk/supplierspend,Thanet District Council,17/02/2016,402223,16669.61,,Kent County Council (Kcs),KCC003,Community Services,Revenue,Energy Costs,Facilities And Management Serv
http://thanet.gov.uk/supplierspend,Thanet District Council,17/02/2016,402224,14100.66,,Kent County Council (Kcs),KCC003,Community Services,Revenue,Energy Costs,Facilities And Management Serv
http://thanet.gov.uk/supplierspend,Thanet District Council,17/02/2016,402225,11536.77,,Kent County Council (Kcs),KCC003,Community Services,Revenue,Energy Costs,Facilities And Management Serv
http://thanet.gov.uk/supplierspend,Thanet District Council,17/02/2016,402226,15007.65,,Kent County Council (Kcs),KCC003,Community Services,Revenue,Energy Costs,Facilities And Management Serv
http://thanet.gov.uk/supplierspend,Thanet District Council,17/02/2016,402227,10316.34,,Kent County Council (Kcs),KCC003,Community Services,Revenue,Energy Costs,Facilities And Management Serv
http://thanet.gov.uk/supplierspend,Thanet District Council,17/02/2016,402270,5630.68,,Kent County Council (Kcs),KCC003,Operational Services,Revenue,Energy Costs,Facilities And Management Serv
http://thanet.gov.uk/supplierspend,Thanet District Council,17/02/2016,402271,7464.19,,Kent County Council (Kcs),KCC003,Corporate Resources and S151,Revenue,Energy Costs,Facilities And Management Serv
http://thanet.gov.uk/supplierspend,Thanet District Council,17/02/2016,402306,9932.82,,Kent County Council (Kcs),KCC003,Operational Services,Revenue,Energy Costs,Facilities And Management Serv
http://thanet.gov.uk/supplierspend,Thanet District Council,17/02/2016,402652,1328.42,,Kent County Council (Kcs),KCC003,Operational Services,Revenue,Energy Costs,Facilities And Management Serv
http://thanet.gov.uk/supplierspend,Thanet District Council,17/02/2016,402653,1154.36,,Kent County Council (Kcs),KCC003,Operational Services,Revenue,Energy Costs,Facilities And Management Serv
http://thanet.gov.uk/supplierspend,Thanet District Council,17/02/2016,402654,1388.41,,Kent County Council (Kcs),KCC003,Operational Services,Revenue,Energy Costs,Facilities And Management Serv
http://thanet.gov.uk/supplierspend,Thanet District Council,17/02/2016,402655,1810.16,,Kent County Council (Kcs),KCC003,Operational Services,Revenue,Energy Costs,Facilities And Management Serv
http://thanet.gov.uk/supplierspend,Thanet District Council,17/02/2016,402670,455.00,,R Cannon,CAN007,Operational Services,Revenue,Services,Maritime Services
http://thanet.gov.uk/supplierspend,Thanet District Council,17/02/2016,401883,686.98,,Serco Ltd,SER002,Operational Services,Revenue,"Repairs,  Alter & Mtce - Build",Building Construction Material
http://thanet.gov.uk/supplierspend,Thanet District Council,17/02/2016,402681,22500.00,,The Ramsgate Society Project Fund,RAM042,Community Services,Revenue,Grants & Subscriptions,Various Categories
http://thanet.gov.uk/supplierspend,Thanet District Council,17/02/2016,401881,638.00,,Viatec (Uk) Limited,VIA002,Operational Services,Revenue,"Equip, Furniture And Materials",Construction-Repair And Maint
http://thanet.gov.uk/supplierspend,Thanet District Council,18/02/2016,402701,237004.00,,Kent & Medway Towns Fire Authority,KMT001,Corporate Resources and S151,Balance Sheet,Collection Fund - Preceptors,Various Cats-Public Sector
http://thanet.gov.uk/supplierspend,Thanet District Council,18/02/2016,402703,3663427.00,,Kent County Council,KCC022,Corporate Resources and S151,Balance Sheet,Collection Fund - Preceptors,Various Cats-Public Sector
http://thanet.gov.uk/supplierspend,Thanet District Council,18/02/2016,402702,495882.00,,Kent Police & Crime Commissioner,KPA003,Corporate Resources and S151,Balance Sheet,Collection Fund - Preceptors,Various Cats-Public Sector
http://thanet.gov.uk/supplierspend,Thanet District Council,18/02/2016,401963,2190.00,,Park Insurance Services,PAR066,Corporate Resources and S151,Balance Sheet,Insurance Holding Account,Financial Services
http://thanet.gov.uk/supplierspend,Thanet District Council,18/02/2016,402276,423465.70,,Zurich Insurance Plc,ZUR007,Corporate Resources and S151,Balance Sheet,Insurance Holding Account,Financial Services
http://thanet.gov.uk/supplierspend,Thanet District Council,18/02/2016,402278,4303.55,,Zurich Insurance Plc,ZUR007,Corporate Resources and S151,Balance Sheet,Insurance Holding Account,Financial Services
http://thanet.gov.uk/supplierspend,Thanet District Council,18/02/2016,402280,48248.02,,Zurich Insurance Plc,ZUR007,Corporate Resources and S151,Balance Sheet,Insurance Holding Account,Financial Services
http://thanet.gov.uk/supplierspend,Thanet District Council,18/02/2016,402287,3686.38,,Zurich Insurance Plc,ZUR007,Corporate Resources and S151,Balance Sheet,Insurance Holding Account,Financial Services
http://thanet.gov.uk/supplierspend,Thanet District Council,18/02/2016,402290,13131.19,,Zurich Insurance Plc,ZUR007,Corporate Resources and S151,Balance Sheet,Insurance Holding Account,Financial Services
http://thanet.gov.uk/supplierspend,Thanet District Council,18/02/2016,402310,22469.00,,Zurich Insurance Plc,ZUR007,Corporate Resources and S151,Balance Sheet,Insurance Holding Account,Financial Services
http://thanet.gov.uk/supplierspend,Thanet District Council,19/02/2016,N/A,5618.81,,REDACTED PERSONAL DATA,N/A,Community Services,Revenue,Relocation Expenses,Non Trade Payee
http://thanet.gov.uk/supplierspend,Thanet District Council,19/02/2016,N/A,230.25,,REDACTED PERSONAL DATA,N/A,Community Services,Revenue,Expenses,Non Trade Payee
http://thanet.gov.uk/supplierspend,Thanet District Council,19/02/2016,N/A,149.17,,REDACTED PERSONAL DATA,N/A,Community Services,Revenue,Car Allowances,Non Trade Payee
http://thanet.gov.uk/supplierspend,Thanet District Council,19/02/2016,N/A,295.22,,REDACTED PERSONAL DATA,N/A,Community Services,Revenue,Car Allowances,Non Trade Payee
http://thanet.gov.uk/supplierspend,Thanet District Council,19/02/2016,N/A,477.97,,REDACTED PERSONAL DATA,N/A,Community Services,Revenue,Car Allowances,Non Trade Payee
http://thanet.gov.uk/supplierspend,Thanet District Council,19/02/2016,N/A,333.48,,REDACTED PERSONAL DATA,N/A,Operational Services,Revenue,Car Allowances,Non Trade Payee
http://thanet.gov.uk/supplierspend,Thanet District Council,19/02/2016,N/A,281.94,,REDACTED PERSONAL DATA,N/A,Operational Services,Revenue,Car Allowances,Non Trade Payee
http://thanet.gov.uk/supplierspend,Thanet District Council,19/02/2016,N/A,103.46,,REDACTED PERSONAL DATA,N/A,Corporate Governance,Revenue,Expenses,Non Trade Payee
http://thanet.gov.uk/supplierspend,Thanet District Council,19/02/2016,N/A,20.00,,REDACTED PERSONAL DATA,N/A,Corporate Governance,Revenue,Public Transport,Non Trade Payee
http://thanet.gov.uk/supplierspend,Thanet District Council,19/02/2016,N/A,137.18,,REDACTED PERSONAL DATA,N/A,Corporate Governance,Revenue,Car Allowances,Non Trade Payee
http://thanet.gov.uk/supplierspend,Thanet District Council,19/02/2016,N/A,569.16,,REDACTED PERSONAL DATA,N/A,East Kent Shared Services,Revenue,Car Allowances,Non Trade Payee
http://thanet.gov.uk/supplierspend,Thanet District Council,19/02/2016,N/A,362.38,,REDACTED PERSONAL DATA,N/A,East Kent Shared Services,Revenue,Car Allowances,Non Trade Payee
http://thanet.gov.uk/supplierspend,Thanet District Council,19/02/2016,N/A,267.88,,REDACTED PERSONAL DATA,N/A,East Kent Shared Services,Revenue,Car Allowances,Non Trade Payee
http://thanet.gov.uk/supplierspend,Thanet District Council,19/02/2016,N/A,1383.20,,REDACTED PERSONAL DATA,N/A,East Kent Shared Services,Revenue,Relocation Expenses,Non Trade Payee
http://thanet.gov.uk/supplierspend,Thanet District Council,19/02/2016,N/A,292.09,,REDACTED PERSONAL DATA,N/A,East Kent Shared Services,Revenue,Car Allowances,Non Trade Payee
http://thanet.gov.uk/supplierspend,Thanet District Council,23/02/2016,402621,647.60,,Academia Ltd,ACA008,East Kent Shared Services,Revenue,Communications & Computing,ICT
http://thanet.gov.uk/supplierspend,Thanet District Council,23/02/2016,402675,1945.11,,Albion Fencing&Construction Kent Ltd,ALB005,Operational Services,Revenue,"Repairs,  Alter & Mtce - Build",Building Construction Material
http://thanet.gov.uk/supplierspend,Thanet District Council,23/02/2016,402676,1984.27,,Albion Fencing&Construction Kent Ltd,ALB005,Operational Services,Revenue,"Repairs,  Alter & Mtce - Build",Building Construction Material
http://thanet.gov.uk/supplierspend,Thanet District Council,23/02/2016,402944,235.54,,Albion Fencing&Construction Kent Ltd,ALB005,Operational Services,Revenue,"Repairs,  Alter & Mtce - Build",Building Construction Material
http://thanet.gov.uk/supplierspend,Thanet District Council,23/02/2016,401949,1730.00,,Amber Driver Training,AMB004,Corporate Resources and S151,Revenue,Training,Human Resources
http://thanet.gov.uk/supplierspend,Thanet District Council,23/02/2016,402768,1307.85,,Buckingham Futures Limited,BUC010,Community Services,Revenue,Agency Staff,Human Resources
http://thanet.gov.uk/supplierspend,Thanet District Council,23/02/2016,402772,855.70,,Buckingham Futures Limited,BUC010,Community Services,Revenue,Agency Staff,Human Resources
http://thanet.gov.uk/supplierspend,Thanet District Council,23/02/2016,401433,1750.00,,Call Flow Solutions Limited,CAL006,Corporate Resources and S151,Revenue,Communications & Computing,ICT
http://thanet.gov.uk/supplierspend,Thanet District Council,23/02/2016,402850,19878.33,,Canterbury City Council,CAN004,East Kent Shared Services,Revenue,Grants & Subscriptions,Various Cats-Public Sector
http://thanet.gov.uk/supplierspend,Thanet District Council,23/02/2016,402231,286.20,,Channel Commercials Plc,CCO001,Operational Services,Revenue,Direct Transport Costs,Vehicle Management
http://thanet.gov.uk/supplierspend,Thanet District Council,23/02/2016,402852,2688.00,,Citrix Systems Uk Limited,CIT015,East Kent Shared Services,Revenue,Communications & Computing,ICT
http://thanet.gov.uk/supplierspend,Thanet District Council,23/02/2016,399491,4627.50,,Civica Uk Ltd,CIV003,Corporate Resources and S151,Revenue,Communications & Computing,ICT
http://thanet.gov.uk/supplierspend,Thanet District Council,23/02/2016,399491,232.50,,Civica Uk Ltd,CIV003,Corporate Resources and S151,Balance Sheet,Intangible Assets,ICT
http://thanet.gov.uk/supplierspend,Thanet District Council,23/02/2016,402645,102902.51,,Civica Uk Ltd,CIV003,East Kent Shared Services,Revenue,Communications & Computing,ICT
http://thanet.gov.uk/supplierspend,Thanet District Council,23/02/2016,402663,1007.00,,Civica Uk Ltd,CIV003,East Kent Shared Services,Revenue,Communications & Computing,ICT
http://thanet.gov.uk/supplierspend,Thanet District Council,23/02/2016,402664,1208.40,,Civica Uk Ltd,CIV003,East Kent Shared Services,Revenue,Communications & Computing,ICT
http://thanet.gov.uk/supplierspend,Thanet District Council,23/02/2016,402665,2014.00,,Civica Uk Ltd,CIV003,East Kent Shared Services,Revenue,Communications & Computing,ICT
http://thanet.gov.uk/supplierspend,Thanet District Council,23/02/2016,402666,755.25,,Civica Uk Ltd,CIV003,East Kent Shared Services,Revenue,Communications & Computing,ICT
http://thanet.gov.uk/supplierspend,Thanet District Council,23/02/2016,401716,-2229.09,,Commercial Services Trading Ltd,COM048,Operational Services,Revenue,Cont Hire & Operating Lease,Various Cats-Public Sector
http://thanet.gov.uk/supplierspend,Thanet District Council,23/02/2016,402751,2722.25,,Commercial Services Trading Ltd,COM048,Operational Services,Revenue,Cont Hire & Operating Lease,Various Cats-Public Sector
http://thanet.gov.uk/supplierspend,Thanet District Council,23/02/2016,402834,3122.00,,Commercial Services Trading Ltd,COM048,Chief Executive,Revenue,Cont Hire & Operating Lease,Various Cats-Public Sector
http://thanet.gov.uk/supplierspend,Thanet District Council,23/02/2016,402619,1500.00,,Cripps Llp,CRI011,Community Services,Revenue,Services,Legal Services
http://thanet.gov.uk/supplierspend,Thanet District Council,23/02/2016,402742,475.38,,Dennis Eagle Ltd,DEN005,Operational Services,Revenue,Direct Transport Costs,Vehicle Management
http://thanet.gov.uk/supplierspend,Thanet District Council,23/02/2016,402929,4600.00,,Dolphin Lifts Kent,DOL003,Corporate Resources and S151,Balance Sheet,Capital Exp-Non Council Assets,Grants
http://thanet.gov.uk/supplierspend,Thanet District Council,23/02/2016,401640,370.00,,Dover District Council,DOV001,Corporate Resources and S151,Revenue,Training,Various Cats-Public Sector
http://thanet.gov.uk/supplierspend,Thanet District Council,23/02/2016,402139,872.61,,E Saunders Margate Ltd,SAU001,Corporate Resources and S151,Balance Sheet,Repairs And Mtce Holding A/C,Construction-Repair And Maint
http://thanet.gov.uk/supplierspend,Thanet District Council,23/02/2016,402140,909.84,,E Saunders Margate Ltd,SAU001,Corporate Resources and S151,Balance Sheet,Repairs And Mtce Holding A/C,Construction-Repair And Maint
http://thanet.gov.uk/supplierspend,Thanet District Council,23/02/2016,402167,790.23,,E Saunders Margate Ltd,SAU001,Corporate Resources and S151,Balance Sheet,Repairs And Mtce Holding A/C,Construction-Repair And Maint
http://thanet.gov.uk/supplierspend,Thanet District Council,23/02/2016,402625,285.17,,E Saunders Margate Ltd,SAU001,Corporate Resources and S151,Balance Sheet,Repairs And Mtce Holding A/C,Construction-Repair And Maint
http://thanet.gov.uk/supplierspend,Thanet District Council,23/02/2016,401406,215570.16,,East Kent Housing Ltd,EKH002,Community Services,Revenue,Other Agencies,Housing Management
http://thanet.gov.uk/supplierspend,Thanet District Council,23/02/2016,401407,29387.00,,East Kent Housing Ltd,EKH002,Community Services,Revenue,Other Agencies,Housing Management
http://thanet.gov.uk/supplierspend,Thanet District Council,23/02/2016,401868,323355.24,,East Kent Housing Ltd,EKH002,Community Services,Revenue,Other Agencies,Housing Management
http://thanet.gov.uk/supplierspend,Thanet District Council,23/02/2016,401923,645.01,,Edf Energy Customers Plc,EDF004,Operational Services,Revenue,Energy Costs,Utilities
http://thanet.gov.uk/supplierspend,Thanet District Council,23/02/2016,401925,606.00,,Edf Energy Customers Plc,EDF004,Operational Services,Revenue,Energy Costs,Utilities
http://thanet.gov.uk/supplierspend,Thanet District Council,23/02/2016,402926,517.70,,Edf Energy Customers Plc,SEE014,Community Services,Revenue,"Repairs,  Alter & Mtce - Build",Utilities
http://thanet.gov.uk/supplierspend,Thanet District Council,23/02/2016,402927,792.62,,Family Mosaic Housing,FAM001,Corporate Resources and S151,Balance Sheet,Capital Exp-Non Council Assets,Housing Management
http://thanet.gov.uk/supplierspend,Thanet District Council,23/02/2016,402930,1654.84,,Family Mosaic Housing,FAM001,Corporate Resources and S151,Balance Sheet,Capital Exp-Non Council Assets,Housing Management
http://thanet.gov.uk/supplierspend,Thanet District Council,23/02/2016,402933,709.60,,Family Mosaic Housing,FAM001,Corporate Resources and S151,Balance Sheet,Capital Exp-Non Council Assets,Housing Management
http://thanet.gov.uk/supplierspend,Thanet District Council,23/02/2016,402661,614.00,,Frandham Boarding Kennels,FRA010,Operational Services,Revenue,Services,Environmental Services
http://thanet.gov.uk/supplierspend,Thanet District Council,23/02/2016,402662,788.50,,Frandham Boarding Kennels,FRA010,Operational Services,Revenue,Services,Environmental Services
http://thanet.gov.uk/supplierspend,Thanet District Council,23/02/2016,402747,526.00,,H E Municipal Engineering Ltd,HEM003,Operational Services,Revenue,Direct Transport Costs,Vehicle Management
http://thanet.gov.uk/supplierspend,Thanet District Council,23/02/2016,401773,916.67,,Hqn Limited,HQN001,Corporate Resources and S151,Revenue,Training,Human Resources
http://thanet.gov.uk/supplierspend,Thanet District Council,23/02/2016,401773,83.33,,Hqn Limited,HQN001,East Kent Shared Services,Revenue,Expenses,Human Resources
http://thanet.gov.uk/supplierspend,Thanet District Council,23/02/2016,401402,1530.23,,Hr Go (Kent) Ltd,HRG001,Operational Services,Revenue,Agency Staff,Human Resources
http://thanet.gov.uk/supplierspend,Thanet District Council,23/02/2016,401778,1203.95,,Hr Go (Kent) Ltd,HRG001,Operational Services,Revenue,Agency Staff,Human Resources
http://thanet.gov.uk/supplierspend,Thanet District Council,23/02/2016,401851,388.50,,Hr Go (Kent) Ltd,HRG001,Operational Services,Revenue,Agency Staff,Human Resources
http://thanet.gov.uk/supplierspend,Thanet District Council,23/02/2016,401854,1651.82,,Hr Go (Kent) Ltd,HRG001,Operational Services,Revenue,Agency Staff,Human Resources
http://thanet.gov.uk/supplierspend,Thanet District Council,23/02/2016,402228,1360.04,,Hr Go (Kent) Ltd,HRG001,Operational Services,Revenue,Agency Staff,Human Resources
http://thanet.gov.uk/supplierspend,Thanet District Council,23/02/2016,402434,1550.10,,Hr Go (Kent) Ltd,HRG001,Operational Services,Revenue,Agency Staff,Human Resources
http://thanet.gov.uk/supplierspend,Thanet District Council,23/02/2016,402437,1130.72,,Hr Go (Kent) Ltd,HRG001,Operational Services,Revenue,Agency Staff,Human Resources
http://thanet.gov.uk/supplierspend,Thanet District Council,23/02/2016,402864,486.55,,Hr Go (Kent) Ltd,HRG001,Operational Services,Revenue,Agency Staff,Human Resources
http://thanet.gov.uk/supplierspend,Thanet District Council,23/02/2016,402866,432.53,,Hr Go (Kent) Ltd,HRG001,Operational Services,Revenue,Agency Staff,Human Resources
http://thanet.gov.uk/supplierspend,Thanet District Council,23/02/2016,402898,1167.59,,Hr Go (Kent) Ltd,HRG001,Operational Services,Revenue,Agency Staff,Human Resources
http://thanet.gov.uk/supplierspend,Thanet District Council,23/02/2016,402899,1130.72,,Hr Go (Kent) Ltd,HRG001,Operational Services,Revenue,Agency Staff,Human Resources
http://thanet.gov.uk/supplierspend,Thanet District Council,23/02/2016,402934,5880.00,,Hubbard & Houghton Construction Ltd,HUB003,Corporate Resources and S151,Balance Sheet,Capital Exp-Non Council Assets,Construction-Repair And Maint
http://thanet.gov.uk/supplierspend,Thanet District Council,23/02/2016,402744,1237.00,,Hyder South East Ltd,HYD015,Operational Services,Revenue,"Equip, Furniture And Materials",Vehicle Management
http://thanet.gov.uk/supplierspend,Thanet District Council,23/02/2016,402629,3187.10,,Insight Direct (Uk) Ltd,INS013,Community Services,Revenue,Communications & Computing,ICT
http://thanet.gov.uk/supplierspend,Thanet District Council,23/02/2016,402803,210.00,,J Redpath Buchanan & Co Ltd,RED001,Corporate Resources and S151,Balance Sheet,Repairs And Mtce Holding A/C,Building Construction Material
http://thanet.gov.uk/supplierspend,Thanet District Council,23/02/2016,402804,210.00,,J Redpath Buchanan & Co Ltd,RED001,Corporate Resources and S151,Balance Sheet,Repairs And Mtce Holding A/C,Building Construction Material
http://thanet.gov.uk/supplierspend,Thanet District Council,23/02/2016,402805,210.00,,J Redpath Buchanan & Co Ltd,RED001,Corporate Resources and S151,Balance Sheet,Repairs And Mtce Holding A/C,Building Construction Material
http://thanet.gov.uk/supplierspend,Thanet District Council,23/02/2016,402806,210.00,,J Redpath Buchanan & Co Ltd,RED001,Corporate Resources and S151,Balance Sheet,Repairs And Mtce Holding A/C,Building Construction Material
http://thanet.gov.uk/supplierspend,Thanet District Council,23/02/2016,402807,210.00,,J Redpath Buchanan & Co Ltd,RED001,Corporate Resources and S151,Balance Sheet,Repairs And Mtce Holding A/C,Building Construction Material
http://thanet.gov.uk/supplierspend,Thanet District Council,23/02/2016,402808,210.00,,J Redpath Buchanan & Co Ltd,RED001,Corporate Resources and S151,Balance Sheet,Repairs And Mtce Holding A/C,Building Construction Material
http://thanet.gov.uk/supplierspend,Thanet District Council,23/02/2016,402809,210.00,,J Redpath Buchanan & Co Ltd,RED001,Corporate Resources and S151,Balance Sheet,Repairs And Mtce Holding A/C,Building Construction Material
http://thanet.gov.uk/supplierspend,Thanet District Council,23/02/2016,402810,210.00,,J Redpath Buchanan & Co Ltd,RED001,Corporate Resources and S151,Balance Sheet,Repairs And Mtce Holding A/C,Building Construction Material
http://thanet.gov.uk/supplierspend,Thanet District Council,23/02/2016,402811,210.00,,J Redpath Buchanan & Co Ltd,RED001,Corporate Resources and S151,Balance Sheet,Repairs And Mtce Holding A/C,Building Construction Material
http://thanet.gov.uk/supplierspend,Thanet District Council,23/02/2016,402812,210.00,,J Redpath Buchanan & Co Ltd,RED001,Corporate Resources and S151,Balance Sheet,Repairs And Mtce Holding A/C,Building Construction Material
http://thanet.gov.uk/supplierspend,Thanet District Council,23/02/2016,401777,1950.00,,J Rospo Building Contractors,ROS001,Community Services,Revenue,"Repairs,  Alter & Mtce - Build",Construction-Repair And Maint
http://thanet.gov.uk/supplierspend,Thanet District Council,23/02/2016,401955,242.00,,Jewson Ltd,JEW001,Operational Services,Revenue,"Equip, Furniture And Materials",Building Construction Material
http://thanet.gov.uk/supplierspend,Thanet District Council,23/02/2016,402932,662.40,,John Gale,GAL001,Corporate Resources and S151,Balance Sheet,Capital Exp-Non Council Assets,Grants
http://thanet.gov.uk/supplierspend,Thanet District Council,23/02/2016,402644,10627.93,,Kent County Council (Kcs),KCC003,Community Services,Revenue,Energy Costs,Facilities And Management Serv
http://thanet.gov.uk/supplierspend,Thanet District Council,23/02/2016,402836,28484.10,,Kent County Council (Kcs),KCC003,Operational Services,Revenue,Direct Transport Costs,Facilities And Management Serv
http://thanet.gov.uk/supplierspend,Thanet District Council,23/02/2016,402447,11610.00,,Kingdom Security Limited,KIN039,Operational Services,Revenue,Services,Street And Traffic Management
http://thanet.gov.uk/supplierspend,Thanet District Council,23/02/2016,402012,2708.00,,Kings Home Improvements,KIN023,Corporate Resources and S151,Balance Sheet,Capital Exp-Non Council Assets,Grants
http://thanet.gov.uk/supplierspend,Thanet District Council,23/02/2016,402257,420.80,,Lister Wilder Limited,LIS002,Operational Services,Revenue,"Equip, Furniture And Materials",Horticultural
http://thanet.gov.uk/supplierspend,Thanet District Council,23/02/2016,402752,559.32,,Loomis Uk Ltd,LOO002,Operational Services,Revenue,Services,Financial Services
http://thanet.gov.uk/supplierspend,Thanet District Council,23/02/2016,402626,2536.00,,Lynn Davis Architects,DAV006,Corporate Resources and S151,Balance Sheet,Repairs And Mtce Holding A/C,Construction-Repair And Maint
http://thanet.gov.uk/supplierspend,Thanet District Council,23/02/2016,402432,324.16,,Lyreco Uk Limited,LYR001,Corporate Resources and S151,Revenue,"Print, Stat And Gen Off Exps",Stationery
http://thanet.gov.uk/supplierspend,Thanet District Council,23/02/2016,402657,360.00,,M & P Dry Risers Limited,MPR001,Corporate Resources and S151,Balance Sheet,Repairs And Mtce Holding A/C,Construction-Repair And Maint
http://thanet.gov.uk/supplierspend,Thanet District Council,23/02/2016,402658,280.00,,M & P Dry Risers Limited,MPR001,Corporate Resources and S151,Balance Sheet,Repairs And Mtce Holding A/C,Construction-Repair And Maint
http://thanet.gov.uk/supplierspend,Thanet District Council,23/02/2016,402660,685.00,,M & P Dry Risers Limited,MPR001,Corporate Resources and S151,Balance Sheet,Repairs And Mtce Holding A/C,Construction-Repair And Maint
http://thanet.gov.uk/supplierspend,Thanet District Council,23/02/2016,402200,425.00,,Machine Mart Ltd,MAC003,Operational Services,Revenue,"Equip, Furniture And Materials",Vehicle Management
http://thanet.gov.uk/supplierspend,Thanet District Council,23/02/2016,402450,712.00,,Matrix Communications Ltd,MAT004,Corporate Resources and S151,Revenue,"Equip, Furniture And Materials",ICT
http://thanet.gov.uk/supplierspend,Thanet District Council,23/02/2016,402451,2636.00,,Matrix Communications Ltd,MAT004,Corporate Resources and S151,Revenue,"Equip, Furniture And Materials",ICT
http://thanet.gov.uk/supplierspend,Thanet District Council,23/02/2016,402453,17172.32,,Mears Ltd,MEA003,Corporate Resources and S151,Balance Sheet,Repairs And Mtce Holding A/C,Construction-Repair And Maint
http://thanet.gov.uk/supplierspend,Thanet District Council,23/02/2016,402454,11296.88,,Mears Ltd,MEA003,Corporate Resources and S151,Balance Sheet,Repairs And Mtce Holding A/C,Construction-Repair And Maint
http://thanet.gov.uk/supplierspend,Thanet District Council,23/02/2016,402455,1135.50,,Mears Ltd,MEA003,Corporate Resources and S151,Balance Sheet,Repairs And Mtce Holding A/C,Construction-Repair And Maint
http://thanet.gov.uk/supplierspend,Thanet District Council,23/02/2016,402456,2797.80,,Mears Ltd,MEA003,Corporate Resources and S151,Balance Sheet,Repairs And Mtce Holding A/C,Construction-Repair And Maint
http://thanet.gov.uk/supplierspend,Thanet District Council,23/02/2016,402457,34560.18,,Mears Ltd,MEA003,Corporate Resources and S151,Balance Sheet,Repairs And Mtce Holding A/C,Construction-Repair And Maint
http://thanet.gov.uk/supplierspend,Thanet District Council,23/02/2016,402458,7823.17,,Mears Ltd,MEA003,Corporate Resources and S151,Balance Sheet,Repairs And Mtce Holding A/C,Construction-Repair And Maint
http://thanet.gov.uk/supplierspend,Thanet District Council,23/02/2016,402668,259.30,,Mears Ltd,MEA003,Corporate Resources and S151,Revenue,"Repairs,  Alter & Mtce - Build",Construction-Repair And Maint
http://thanet.gov.uk/supplierspend,Thanet District Council,23/02/2016,402669,1592.69,,Mears Ltd,MEA003,Community Services,Revenue,"Repairs,  Alter & Mtce - Build",Construction-Repair And Maint
http://thanet.gov.uk/supplierspend,Thanet District Council,23/02/2016,402773,5416.14,,Mears Ltd,MEA003,Corporate Resources and S151,Balance Sheet,Repairs And Mtce Holding A/C,Construction-Repair And Maint
http://thanet.gov.uk/supplierspend,Thanet District Council,23/02/2016,402774,11685.93,,Mears Ltd,MEA003,Corporate Resources and S151,Balance Sheet,Repairs And Mtce Holding A/C,Construction-Repair And Maint
http://thanet.gov.uk/supplierspend,Thanet District Council,23/02/2016,402776,3528.82,,Mears Ltd,MEA003,Corporate Resources and S151,Balance Sheet,Repairs And Mtce Holding A/C,Construction-Repair And Maint
http://thanet.gov.uk/supplierspend,Thanet District Council,23/02/2016,402777,5650.18,,Mears Ltd,MEA003,Corporate Resources and S151,Balance Sheet,Repairs And Mtce Holding A/C,Construction-Repair And Maint
http://thanet.gov.uk/supplierspend,Thanet District Council,23/02/2016,402826,1148.53,,Mears Ltd,MEA003,Operational Services,Revenue,"Repairs,  Alter & Mtce - Build",Construction-Repair And Maint
http://thanet.gov.uk/supplierspend,Thanet District Council,23/02/2016,402793,523.60,,Morgan Jones Ltd,MOR001,Corporate Resources and S151,Revenue,Agency Staff,Human Resources
http://thanet.gov.uk/supplierspend,Thanet District Council,23/02/2016,402794,575.96,,Morgan Jones Ltd,MOR001,Corporate Resources and S151,Revenue,Agency Staff,Human Resources
http://thanet.gov.uk/supplierspend,Thanet District Council,23/02/2016,402795,582.75,,Morgan Jones Ltd,MOR001,Community Services,Revenue,Agency Staff,Human Resources
http://thanet.gov.uk/supplierspend,Thanet District Council,23/02/2016,402651,21755.57,,Neopost Limited Neofunds,NEO004,Corporate Resources and S151,Revenue,Communications & Computing,Mail Services
http://thanet.gov.uk/supplierspend,Thanet District Council,23/02/2016,402750,5950.00,,Netcall Telecom Ltd,NET013,East Kent Shared Services,Revenue,Communications & Computing,ICT
http://thanet.gov.uk/supplierspend,Thanet District Council,23/02/2016,402931,6624.00,,Northwood Builders,NOR002,Corporate Resources and S151,Balance Sheet,Capital Exp-Non Council Assets,Grants
http://thanet.gov.uk/supplierspend,Thanet District Council,23/02/2016,402250,69.60,,Parkeon Limited,PAR063,Community Services,Revenue,"Equip, Furniture And Materials",Street And Traffic Management
http://thanet.gov.uk/supplierspend,Thanet District Council,23/02/2016,402250,1700.00,,Parkeon Limited,PAR063,Operational Services,Revenue,"Equip, Furniture And Materials",Street And Traffic Management
http://thanet.gov.uk/supplierspend,Thanet District Council,23/02/2016,402647,809.28,,Probrand Ltd,PRO012,East Kent Shared Services,Revenue,Communications & Computing,ICT
http://thanet.gov.uk/supplierspend,Thanet District Council,23/02/2016,401864,21882.80,,Profile Security Services Limited,PRO018,Operational Services,Revenue,Services,Facilities And Management Serv
http://thanet.gov.uk/supplierspend,Thanet District Council,23/02/2016,402735,-213.28,,Profile Security Services Limited,PRO018,Operational Services,Revenue,Services,Facilities And Management Serv
http://thanet.gov.uk/supplierspend,Thanet District Council,23/02/2016,402736,450.00,,R Cannon,CAN007,Operational Services,Revenue,Services,Maritime Services
http://thanet.gov.uk/supplierspend,Thanet District Council,23/02/2016,401735,700.00,,R J Broadley Tree Surgery,RJB002,Operational Services,Revenue,Grounds Mtce Costs,Horticultural
http://thanet.gov.uk/supplierspend,Thanet District Council,23/02/2016,402143,420.00,,R J Broadley Tree Surgery,RJB002,Operational Services,Revenue,Grounds Mtce Costs,Horticultural
http://thanet.gov.uk/supplierspend,Thanet District Council,23/02/2016,402636,1320.00,,Reed Specialist Recruitment Ltd,REE015,East Kent Shared Services,Revenue,Agency Staff,Human Resources
http://thanet.gov.uk/supplierspend,Thanet District Council,23/02/2016,401958,720.00,,Rigby Taylor Ltd,RIG002,Operational Services,Revenue,"Repairs,  Alter & Mtce - Build",Horticultural
http://thanet.gov.uk/supplierspend,Thanet District Council,23/02/2016,402623,-660.00,,Rigby Taylor Ltd,RIG002,Operational Services,Revenue,"Equip, Furniture And Materials",Horticultural
http://thanet.gov.uk/supplierspend,Thanet District Council,23/02/2016,401889,285.96,,Royal Mail,ROY004,Corporate Governance,Revenue,Communications & Computing,Mail Services
http://thanet.gov.uk/supplierspend,Thanet District Council,23/02/2016,401942,1008.00,,Sellick Partnership Ltd,SEL011,Corporate Governance,Revenue,Agency Staff,Human Resources
http://thanet.gov.uk/supplierspend,Thanet District Council,23/02/2016,402449,864.00,,Sellick Partnership Ltd,SEL011,Corporate Governance,Revenue,Agency Staff,Human Resources
http://thanet.gov.uk/supplierspend,Thanet District Council,23/02/2016,402631,1148.00,,Sharpe Pritchard Llp,SHA030,Corporate Governance,Revenue,Services,Legal Services
http://thanet.gov.uk/supplierspend,Thanet District Council,23/02/2016,401588,1256.28,,Southern Electric,SEL007,Community Services,Revenue,Energy Costs,Utilities
http://thanet.gov.uk/supplierspend,Thanet District Council,23/02/2016,401590,976.69,,Southern Electric,SEL007,Community Services,Revenue,Energy Costs,Utilities
http://thanet.gov.uk/supplierspend,Thanet District Council,23/02/2016,402781,-976.69,,Southern Electric,SEL007,Community Services,Revenue,Energy Costs,Utilities
http://thanet.gov.uk/supplierspend,Thanet District Council,23/02/2016,402782,640.49,,Southern Electric,SEL007,Community Services,Revenue,Energy Costs,Utilities
http://thanet.gov.uk/supplierspend,Thanet District Council,23/02/2016,402783,648.90,,Southern Electric,SEL007,Community Services,Revenue,Energy Costs,Utilities
http://thanet.gov.uk/supplierspend,Thanet District Council,23/02/2016,402784,-1256.28,,Southern Electric,SEL007,Community Services,Revenue,Energy Costs,Utilities
http://thanet.gov.uk/supplierspend,Thanet District Council,23/02/2016,402755,1936.94,,Southern Water,SWA001,Operational Services,Revenue,Water Services,Utilities
http://thanet.gov.uk/supplierspend,Thanet District Council,23/02/2016,402758,359.66,,Southern Water,SWA001,Operational Services,Revenue,Water Services,Utilities
http://thanet.gov.uk/supplierspend,Thanet District Council,23/02/2016,402764,-549.66,,Southern Water,SWA001,Operational Services,Revenue,Water Services,Utilities
http://thanet.gov.uk/supplierspend,Thanet District Council,23/02/2016,401694,1589.50,,Streetmaster (S.Wales) Limited,STR001,Operational Services,Revenue,"Equip, Furniture And Materials",Highway Equipment And Material
http://thanet.gov.uk/supplierspend,Thanet District Council,23/02/2016,402180,1662.30,,Thanet Waste Services Ltd,TWA001,Operational Services,Revenue,Private Contractors,Environmental Services
http://thanet.gov.uk/supplierspend,Thanet District Council,23/02/2016,402416,1590.00,,The Bell Brush Company,BEL018,Operational Services,Revenue,"Equip, Furniture And Materials",Cleaning And Janitorial
http://thanet.gov.uk/supplierspend,Thanet District Council,23/02/2016,402726,2916.64,,The Glenwood Hotel,GLE007,Community Services,Revenue,Services,Housing Management
http://thanet.gov.uk/supplierspend,Thanet District Council,23/02/2016,402727,3104.14,,The Glenwood Hotel,GLE007,Community Services,Revenue,Services,Housing Management
http://thanet.gov.uk/supplierspend,Thanet District Council,23/02/2016,402728,229.16,,The Glenwood Hotel,GLE007,Community Services,Revenue,Services,Housing Management
http://thanet.gov.uk/supplierspend,Thanet District Council,23/02/2016,402671,1987.50,,The Natural Solution Cleaning Co Ltd,NAT030,Operational Services,Revenue,Cont Hire & Operating Lease,Cleaning And Janitorial
http://thanet.gov.uk/supplierspend,Thanet District Council,23/02/2016,402760,21916.50,,Topdesk Uk Limited,TOP011,East Kent Shared Services,Revenue,Communications & Computing,ICT
http://thanet.gov.uk/supplierspend,Thanet District Council,23/02/2016,402761,6599.25,,Topdesk Uk Limited,TOP011,East Kent Shared Services,Revenue,Communications & Computing,ICT
http://thanet.gov.uk/supplierspend,Thanet District Council,23/02/2016,402617,229.11,,Total Supplies Ltd,TOT009,Corporate Resources and S151,Revenue,Cleaning & Domestic Supplies,Cleaning And Janitorial
http://thanet.gov.uk/supplierspend,Thanet District Council,23/02/2016,402928,6605.18,,Trueden Disability Adaptations Ltd,TRU012,Corporate Resources and S151,Balance Sheet,Capital Exp-Non Council Assets,Grants
http://thanet.gov.uk/supplierspend,Thanet District Council,23/02/2016,401954,15000.00,,Your Leisure Kent Limited,YOU016,Community Services,Revenue,Grants & Subscriptions,Arts And Leisure Services
http://thanet.gov.uk/supplierspend,Thanet District Council,24/02/2016,401323,356.57,,Allstar Business Solutions Ltd,ALL038,Operational Services,Revenue,Direct Transport Costs,Vehicle Management
http://thanet.gov.uk/supplierspend,Thanet District Council,24/02/2016,403131,266.85,,Allstar Business Solutions Ltd,ALL038,Operational Services,Revenue,Direct Transport Costs,Vehicle Management
http://thanet.gov.uk/supplierspend,Thanet District Council,24/02/2016,403135,1132.59,,Co-Operative Bank Paypoint,COO018,Corporate Resources and S151,Revenue,Services,Financial Services
http://thanet.gov.uk/supplierspend,Thanet District Council,24/02/2016,403135,377.53,,Co-Operative Bank Paypoint,COO018,Community Services,Revenue,Services,Financial Services
http://thanet.gov.uk/supplierspend,Thanet District Council,24/02/2016,403129,247535.28,,Maidstone Borough Council,MAI002,Corporate Resources and S151,Balance Sheet,Collection Fund,Various Cats-Public Sector
http://thanet.gov.uk/supplierspend,Thanet District Council,24/02/2016,403129,684398.40,,Maidstone Borough Council,MAI002,Corporate Resources and S151,Balance Sheet,Revenue Financing,Various Cats-Public Sector
http://thanet.gov.uk/supplierspend,Thanet District Council,24/02/2016,403138,262.93,,Nat West Bank,NWE001,Corporate Resources and S151,Revenue,Services,Various Categories
http://thanet.gov.uk/supplierspend,Thanet District Council,24/02/2016,403120,179.00,,Public Works Loan Board,PWL001,Corporate Resources and S151,Balance Sheet,Borrowing Repayable>1 Yr,Investments And Loans
http://thanet.gov.uk/supplierspend,Thanet District Council,24/02/2016,403120,1189.32,,Public Works Loan Board,PWL001,Corporate Resources and S151,Balance Sheet,Debit Interest And Expenses,Investments And Loans
http://thanet.gov.uk/supplierspend,Thanet District Council,24/02/2016,403123,15800.00,,Public Works Loan Board,PWL001,Corporate Resources and S151,Balance Sheet,Debit Interest And Expenses,Investments And Loans
http://thanet.gov.uk/supplierspend,Thanet District Council,24/02/2016,403133,1348.85,,Santander,SAN017,Community Services,Revenue,Services,Various Categories
http://thanet.gov.uk/supplierspend,Thanet District Council,24/02/2016,403133,449.62,,Santander,SAN017,Corporate Resources and S151,Revenue,Services,Various Categories
http://thanet.gov.uk/supplierspend,Thanet District Council,24/02/2016,403134,658.98,,Santander,SAN017,Corporate Resources and S151,Revenue,Services,Various Categories
http://thanet.gov.uk/supplierspend,Thanet District Council,24/02/2016,403180,-219955.00,,Secretary Of State,SEC003,Corporate Resources and S151,Revenue,Revenue Financing,Government Agencies
http://thanet.gov.uk/supplierspend,Thanet District Council,24/02/2016,403180,1185739.00,,Secretary Of State,SEC003,Corporate Resources and S151,Balance Sheet,Collection Fund,Government Agencies
http://thanet.gov.uk/supplierspend,Thanet District Council,24/02/2016,403137,1822.69,,Worldpay Ltd,WOR008,Corporate Resources and S151,Revenue,Services,Financial Services
http://thanet.gov.uk/supplierspend,Thanet District Council,24/02/2016,403140,1733.12,,Worldpay Ltd,WOR008,Corporate Resources and S151,Revenue,Services,Financial Services
http://thanet.gov.uk/supplierspend,Thanet District Council,24/02/2016,403143,313.46,,Worldpay Ltd,WOR008,Corporate Resources and S151,Revenue,Services,Financial Services
http://thanet.gov.uk/supplierspend,Thanet District Council,25/02/2016,401304,4927.14,,Als Civil Engineers Ltd,ALS002,Operational Services,Revenue,"Repairs,  Alter & Mtce - Build",Construction-Repair And Maint
http://thanet.gov.uk/supplierspend,Thanet District Council,25/02/2016,402876,280.00,,Astra Uk (Contracts) Ltd,AST003,Operational Services,Revenue,Cleaning & Domestic Supplies,Environmental Services
http://thanet.gov.uk/supplierspend,Thanet District Council,25/02/2016,402922,79941.00,,Bcs Building Contractor & Servs Ltd,BCS002,Corporate Resources and S151,Balance Sheet,Repairs And Mtce Holding A/C,Construction-Repair And Maint
http://thanet.gov.uk/supplierspend,Thanet District Council,25/02/2016,402753,700.00,,Benham Publishing Ltd,BEN015,Corporate Resources and S151,Revenue,Miscellaneous Expenses,Facilities And Management Serv
http://thanet.gov.uk/supplierspend,Thanet District Council,25/02/2016,402770,1165.50,,Buckingham Futures Limited,BUC010,Community Services,Revenue,Agency Staff,Human Resources
http://thanet.gov.uk/supplierspend,Thanet District Council,25/02/2016,402935,2025.00,,Cyberkix Limited,CYB001,East Kent Shared Services,Revenue,"Equip, Furniture And Materials",ICT
http://thanet.gov.uk/supplierspend,Thanet District Council,25/02/2016,401286,3044.98,,Dover District Council,DOV001,Corporate Resources and S151,Revenue,Employee Related Schemes,Various Cats-Public Sector
http://thanet.gov.uk/supplierspend,Thanet District Council,25/02/2016,403268,1137.40,,Family Mosaic Housing,FAM001,Corporate Resources and S151,Balance Sheet,Capital Exp-Non Council Assets,Housing Management
http://thanet.gov.uk/supplierspend,Thanet District Council,25/02/2016,401452,3000.00,,Gardiner & Theobald Llp,GAR020,Corporate Resources and S151,Balance Sheet,Investment Property For Lease,Consultancy
http://thanet.gov.uk/supplierspend,Thanet District Council,25/02/2016,403100,737.10,,Hi Way Services Ltd,HIW002,Operational Services,Revenue,"Repairs,  Alter & Mtce - Build",Highway Equipment And Material
http://thanet.gov.uk/supplierspend,Thanet District Council,25/02/2016,403101,650.00,,Hi Way Services Ltd,HIW002,Operational Services,Revenue,"Repairs,  Alter & Mtce - Build",Highway Equipment And Material
http://thanet.gov.uk/supplierspend,Thanet District Council,25/02/2016,402385,210.00,,Housing Reviews Limited,HOU012,Community Services,Revenue,Expenses,Special Community Care
http://thanet.gov.uk/supplierspend,Thanet District Council,25/02/2016,402822,800.77,,Hr Go (Kent) Ltd,HRG001,Operational Services,Revenue,Agency Staff,Human Resources
http://thanet.gov.uk/supplierspend,Thanet District Council,25/02/2016,402865,388.50,,Hr Go (Kent) Ltd,HRG001,Operational Services,Revenue,Agency Staff,Human Resources
http://thanet.gov.uk/supplierspend,Thanet District Council,25/02/2016,402961,2504.67,,Hr Go (Kent) Ltd,HRG001,Operational Services,Revenue,Agency Staff,Human Resources
http://thanet.gov.uk/supplierspend,Thanet District Council,25/02/2016,402962,8467.83,,Hr Go (Kent) Ltd,HRG001,Operational Services,Revenue,Agency Staff,Human Resources
http://thanet.gov.uk/supplierspend,Thanet District Council,25/02/2016,402966,388.00,,Johnston Sweepers Ltd,JOH008,Operational Services,Revenue,Direct Transport Costs,Vehicle Management
http://thanet.gov.uk/supplierspend,Thanet District Council,25/02/2016,402815,3239.15,,Lobster Van Hire Ltd,LOB001,Operational Services,Revenue,Cont Hire & Operating Lease,Vehicle Management
http://thanet.gov.uk/supplierspend,Thanet District Council,25/02/2016,402892,1973.65,,Mears Ltd,MEA003,Community Services,Revenue,"Repairs,  Alter & Mtce - Build",Construction-Repair And Maint
http://thanet.gov.uk/supplierspend,Thanet District Council,25/02/2016,402893,101199.36,,Mears Ltd,MEA003,Community Services,Revenue,"Repairs,  Alter & Mtce - Build",Construction-Repair And Maint
http://thanet.gov.uk/supplierspend,Thanet District Council,25/02/2016,402894,2065.39,,Mears Ltd,MEA003,Community Services,Revenue,"Repairs,  Alter & Mtce - Build",Construction-Repair And Maint
http://thanet.gov.uk/supplierspend,Thanet District Council,25/02/2016,402253,432.73,,Med Clean South Ltd,MED015,Operational Services,Revenue,"Repairs,  Alter & Mtce - Build",Cleaning And Janitorial
http://thanet.gov.uk/supplierspend,Thanet District Council,25/02/2016,402841,350.00,,Nayland Rock Hotels Ltd,NAY002,Community Services,Revenue,Services,Housing Management
http://thanet.gov.uk/supplierspend,Thanet District Council,25/02/2016,403114,1634.42,,Network Rail,RAI002,Operational Services,Revenue,Rents,Financial Services
http://thanet.gov.uk/supplierspend,Thanet District Council,25/02/2016,403266,500.00,,Oasis Domestic Abuse Service Ltd,OAS003,Operational Services,Revenue,Grants & Subscriptions,Non Trade Payee
http://thanet.gov.uk/supplierspend,Thanet District Council,25/02/2016,401599,227.64,,Ocs Group Uk Ltd T/A Cannon,OCS003,Corporate Resources and S151,Revenue,"Equip, Furniture And Materials",Cleaning And Janitorial
http://thanet.gov.uk/supplierspend,Thanet District Council,25/02/2016,402796,312.52,,Orbis Protect Limited,ORB009,Community Services,Revenue,Services,Facilities And Management Serv
http://thanet.gov.uk/supplierspend,Thanet District Council,25/02/2016,402827,603.75,,Osborne Richardson Limited,OSB009,Community Services,Revenue,Agency Staff,Human Resources
http://thanet.gov.uk/supplierspend,Thanet District Council,25/02/2016,403264,500.00,,Pilgrims Hospice,PIL003,Operational Services,Revenue,Grants & Subscriptions,Non Trade Payee
http://thanet.gov.uk/supplierspend,Thanet District Council,25/02/2016,403265,500.00,,Porchlight,POR020,Operational Services,Revenue,Grants & Subscriptions,Various Categories
http://thanet.gov.uk/supplierspend,Thanet District Council,25/02/2016,403229,315.00,,R Cannon,CAN007,Operational Services,Revenue,Services,Maritime Services
http://thanet.gov.uk/supplierspend,Thanet District Council,25/02/2016,402886,1320.00,,Reed Specialist Recruitment Ltd,REE015,East Kent Shared Services,Revenue,Agency Staff,Human Resources
http://thanet.gov.uk/supplierspend,Thanet District Council,25/02/2016,402878,821.60,,Silgo Lubricants Ltd,SIL007,Operational Services,Revenue,Direct Transport Costs,Vehicle Management
http://thanet.gov.uk/supplierspend,Thanet District Council,25/02/2016,403267,9445.00,,South East Adaptations Limited,SOU026,Corporate Resources and S151,Balance Sheet,Capital Exp-Non Council Assets,Grants
http://thanet.gov.uk/supplierspend,Thanet District Council,25/02/2016,402144,3601.00,,Streetwise Orientatn & Nav Sys Ltd,STR039,Community Services,Revenue,Services,Arts And Leisure Services
http://thanet.gov.uk/supplierspend,Thanet District Council,25/02/2016,403097,342.48,,Terberg Matec Uk Limited,TER010,Operational Services,Revenue,Direct Transport Costs,Vehicle Management
http://thanet.gov.uk/supplierspend,Thanet District Council,25/02/2016,402650,1513.27,,Tourism Works,TOU007,Community Services,Revenue,Services,Facilities And Management Serv
http://thanet.gov.uk/supplierspend,Thanet District Council,25/02/2016,401814,36599.00,,Triple M Contract Services Ltd,TRI017,Corporate Resources and S151,Balance Sheet,Repairs And Mtce Holding A/C,Construction-Repair And Maint
http://thanet.gov.uk/supplierspend,Thanet District Council,25/02/2016,402949,3190.00,,Viatec (Uk) Limited,VIA002,Operational Services,Revenue,"Repairs,  Alter & Mtce - Build",Construction-Repair And Maint
http://thanet.gov.uk/supplierspend,Thanet District Council,26/02/2016,PC7892,296.33,49.39,Aford Awards Ltd,N/A,Community Services,Revenue,"Equip, Furniture And Materials",Stationery
http://thanet.gov.uk/supplierspend,Thanet District Council,26/02/2016,PC7947,7.20,,Amazon,N/A,Operational Services,Revenue,"Equip, Furniture And Materials",Stationery
http://thanet.gov.uk/supplierspend,Thanet District Council,26/02/2016,PC7898,38.60,6.44,Amazon UK Marketplace,N/A,Operational Services,Revenue,"Equip, Furniture And Materials",Stationery
http://thanet.gov.uk/supplierspend,Thanet District Council,26/02/2016,PC7927,25.45,,Amazon UK Marketplace,N/A,East Kent Shared Services,Revenue,"Print, Stat And Gen Off Exps",Stationery
http://thanet.gov.uk/supplierspend,Thanet District Council,26/02/2016,PC7931,11.83,,Amazon UK Marketplace,N/A,East Kent Shared Services,Revenue,"Print, Stat And Gen Off Exps",Stationery
http://thanet.gov.uk/supplierspend,Thanet District Council,26/02/2016,PC7946,2.40,,Amazon UK Marketplace,N/A,East Kent Shared Services,Revenue,Communications & Computing,Stationery
http://thanet.gov.uk/supplierspend,Thanet District Council,26/02/2016,PC7934,14.00,,Amazon UK Retail,N/A,Community Services,Revenue,"Print, Stat And Gen Off Exps",Stationery
http://thanet.gov.uk/supplierspend,Thanet District Council,26/02/2016,PC7935,151.40,,Amazon UK Retail,N/A,Community Services,Revenue,"Print, Stat And Gen Off Exps",Stationery
http://thanet.gov.uk/supplierspend,Thanet District Council,26/02/2016,PC7908,79.15,,Argos,N/A,Community Services,Revenue,"Equip, Furniture And Materials",Facilities And Management Serv
http://thanet.gov.uk/supplierspend,Thanet District Council,26/02/2016,PC7823,13.00,2.17,Asda,N/A,Community Services,Revenue,"Equip, Furniture And Materials",Catering
http://thanet.gov.uk/supplierspend,Thanet District Council,26/02/2016,PC7871,34.59,,Birmingham Int Hotel,N/A,Community Services,Revenue,Expenses,Human Resources
http://thanet.gov.uk/supplierspend,Thanet District Council,26/02/2016,PC7877,42.92,,Birmingham Int Hotel,N/A,Community Services,Revenue,Expenses,Human Resources
http://thanet.gov.uk/supplierspend,Thanet District Council,26/02/2016,PC7824,114.91,,Booker Ltd,N/A,Community Services,Revenue,Catering,Catering
http://thanet.gov.uk/supplierspend,Thanet District Council,26/02/2016,PC7825,46.12,,Booker Ltd,N/A,Community Services,Revenue,Catering,Catering
http://thanet.gov.uk/supplierspend,Thanet District Council,26/02/2016,PC7834,16.50,,Booker Ltd,N/A,Chief Executive,Revenue,Catering,Catering
http://thanet.gov.uk/supplierspend,Thanet District Council,26/02/2016,PC7867,8.98,,Booker Ltd,N/A,Community Services,Revenue,Catering,Catering
http://thanet.gov.uk/supplierspend,Thanet District Council,26/02/2016,PC7868,39.05,,Booker Ltd,N/A,Community Services,Revenue,Catering,Catering
http://thanet.gov.uk/supplierspend,Thanet District Council,26/02/2016,PC7928,32.49,,Booker Ltd,N/A,Chief Executive,Revenue,Catering,Catering
http://thanet.gov.uk/supplierspend,Thanet District Council,26/02/2016,PC7929,49.99,,Booker Ltd,N/A,Community Services,Revenue,Catering,Catering
http://thanet.gov.uk/supplierspend,Thanet District Council,26/02/2016,PC7930,35.89,,Booker Ltd,N/A,Operational Services,Revenue,Catering,Catering
http://thanet.gov.uk/supplierspend,Thanet District Council,26/02/2016,PC7890,234.00,,British Standards,N/A,Community Services,Revenue,"Equip, Furniture And Materials",Stationery
http://thanet.gov.uk/supplierspend,Thanet District Council,26/02/2016,PC7888,129.00,,CIEH,N/A,Community Services,Revenue,Expenses,Human Resources
http://thanet.gov.uk/supplierspend,Thanet District Council,26/02/2016,PC7842,148.46,,Dacorum Touchtone,N/A,East Kent Shared Services,Revenue,Expenses,Catering
http://thanet.gov.uk/supplierspend,Thanet District Council,26/02/2016,PC7855,233.79,,Diamond Publishing Ltd,N/A,Community Services,Revenue,"Print, Stat And Gen Off Exps",Stationery
http://thanet.gov.uk/supplierspend,Thanet District Council,26/02/2016,PC7827,62.49,,Discount Displays,N/A,Corporate Resources and S151,Revenue,"Print, Stat And Gen Off Exps",Stationery
http://thanet.gov.uk/supplierspend,Thanet District Council,26/02/2016,PC7886,83.50,,DVLA,N/A,Operational Services,Revenue,Direct Transport Costs,Various Cats - Public Sector
http://thanet.gov.uk/supplierspend,Thanet District Council,26/02/2016,PC7922,25.00,,DVLA,N/A,Operational Services,Revenue,Direct Transport Costs,Various Cats - Public Sector
http://thanet.gov.uk/supplierspend,Thanet District Council,26/02/2016,PC7907,401.00,,DVSA,N/A,Operational Services,Revenue,Direct Transport Costs,Various Cats - Public Sector
http://thanet.gov.uk/supplierspend,Thanet District Council,26/02/2016,PC7866,10.00,,F J Rogers,N/A,Community Services,Revenue,"Equip, Furniture And Materials",Facilities And Management Serv
http://thanet.gov.uk/supplierspend,Thanet District Council,26/02/2016,PC7960,59.20,,Google,N/A,Community Services,Revenue,Miscellaneous Expenses,ICT
http://thanet.gov.uk/supplierspend,Thanet District Council,26/02/2016,PC7845,115.81,,Halfords,N/A,Operational Services,Revenue,"Repairs,  Alter & Mtce - Build",Vehicle Management
http://thanet.gov.uk/supplierspend,Thanet District Council,26/02/2016,PC7885,13.32,,Halfords,N/A,Community Services,Revenue,"Equip, Furniture And Materials",Vehicle Management
http://thanet.gov.uk/supplierspend,Thanet District Council,26/02/2016,PC7909,159.00,,HM Court,N/A,East Kent Shared Services,Revenue,Services,Various Cats - Public Sector
http://thanet.gov.uk/supplierspend,Thanet District Council,26/02/2016,PC7910,57.00,,HM Court,N/A,East Kent Shared Services,Revenue,Services,Various Cats - Public Sector
http://thanet.gov.uk/supplierspend,Thanet District Council,26/02/2016,PC7911,78.00,,HM Court,N/A,East Kent Shared Services,Revenue,Services,Various Cats - Public Sector
http://thanet.gov.uk/supplierspend,Thanet District Council,26/02/2016,PC7912,1293.00,,HM Court,N/A,East Kent Shared Services,Revenue,Services,Various Cats - Public Sector
http://thanet.gov.uk/supplierspend,Thanet District Council,26/02/2016,PC7913,1521.00,,HM Court,N/A,East Kent Shared Services,Revenue,Services,Various Cats - Public Sector
http://thanet.gov.uk/supplierspend,Thanet District Council,26/02/2016,PC7914,660.00,,HM Court,N/A,East Kent Shared Services,Revenue,Services,Various Cats - Public Sector
http://thanet.gov.uk/supplierspend,Thanet District Council,26/02/2016,PC7747,108.33,,Holiday Inn  Leicester,N/A,Corporate Governance,Revenue,Training,Human Resources
http://thanet.gov.uk/supplierspend,Thanet District Council,26/02/2016,PC7873,-54.17,,Holiday Inn  Leicester,N/A,Corporate Governance,Revenue,Training,Human Resources
http://thanet.gov.uk/supplierspend,Thanet District Council,26/02/2016,PC7956,12.80,2.14,Iceland,N/A,Operational Services,Revenue,"Print, Stat And Gen Off Exps",Catering
http://thanet.gov.uk/supplierspend,Thanet District Council,26/02/2016,PC7854,152.08,,Insidehousing.co.uk,N/A,Community Services,Revenue,Grants & Subscriptions,Stationery
http://thanet.gov.uk/supplierspend,Thanet District Council,26/02/2016,PC7957,14.10,,Insidehousing.co.uk,N/A,Community Services,Revenue,Grants & Subscriptions,Stationery
http://thanet.gov.uk/supplierspend,Thanet District Council,26/02/2016,PC7896,69.00,,Instrument Sales & Svcs,N/A,Community Services,Revenue,"Equip, Furniture And Materials",Building Construction Material
http://thanet.gov.uk/supplierspend,Thanet District Council,26/02/2016,PC7932,165.60,27.6,Instrument Sales & Svcs,N/A,Community Services,Revenue,"Equip, Furniture And Materials",Building Construction Material
http://thanet.gov.uk/supplierspend,Thanet District Council,26/02/2016,PC7844,99.00,,JIK Software Limited,N/A,Community Services,Revenue,Miscellaneous Expenses,Facilities And Management Serv
http://thanet.gov.uk/supplierspend,Thanet District Council,26/02/2016,PC7831,5.93,,Leafi Ltd,N/A,Community Services,Revenue,Catering,Human Resources
http://thanet.gov.uk/supplierspend,Thanet District Council,26/02/2016,PC7851,150.00,,London & South Eastern,N/A,Community Services,Revenue,Grants & Subscriptions,Human Resources
http://thanet.gov.uk/supplierspend,Thanet District Council,26/02/2016,PC7869,158.50,,London & South Eastern,N/A,Community Services,Revenue,Public Transport,Human Resources
http://thanet.gov.uk/supplierspend,Thanet District Council,26/02/2016,PC7872,77.70,,London & South Eastern,N/A,Corporate Governance,Revenue,Public Transport,Human Resources
http://thanet.gov.uk/supplierspend,Thanet District Council,26/02/2016,PC7878,158.50,,London & South Eastern,N/A,Community Services,Revenue,Public Transport,Human Resources
http://thanet.gov.uk/supplierspend,Thanet District Council,26/02/2016,PC7880,27.25,,London & South Eastern,N/A,Operational Services,Revenue,Public Transport,Human Resources
http://thanet.gov.uk/supplierspend,Thanet District Council,26/02/2016,PC7881,27.25,,London & South Eastern,N/A,Operational Services,Revenue,Public Transport,Human Resources
http://thanet.gov.uk/supplierspend,Thanet District Council,26/02/2016,PC7900,66.70,,London & South Eastern,N/A,Corporate Resources and S151,Revenue,Public Transport,Human Resources
http://thanet.gov.uk/supplierspend,Thanet District Council,26/02/2016,PC7918,12.30,,London & South Eastern,N/A,Operational Services,Revenue,Public Transport,Human Resources
http://thanet.gov.uk/supplierspend,Thanet District Council,26/02/2016,PC7814,88.00,,M&S E Commerce,N/A,East Kent Shared Services,Revenue,Catering,Facilities And Management Serv
http://thanet.gov.uk/supplierspend,Thanet District Council,26/02/2016,PC7815,88.00,,M&S E Commerce,N/A,East Kent Shared Services,Revenue,Catering,Facilities And Management Serv
http://thanet.gov.uk/supplierspend,Thanet District Council,26/02/2016,PC7816,88.00,,M&S E Commerce,N/A,East Kent Shared Services,Revenue,Catering,Facilities And Management Serv
http://thanet.gov.uk/supplierspend,Thanet District Council,26/02/2016,PC7817,88.00,,M&S E Commerce,N/A,East Kent Shared Services,Revenue,Catering,Facilities And Management Serv
http://thanet.gov.uk/supplierspend,Thanet District Council,26/02/2016,PC7818,88.00,,M&S E Commerce,N/A,East Kent Shared Services,Revenue,Catering,Facilities And Management Serv
http://thanet.gov.uk/supplierspend,Thanet District Council,26/02/2016,PC7860,-88.00,,M&S E Commerce,N/A,East Kent Shared Services,Revenue,Catering,Facilities And Management Serv
http://thanet.gov.uk/supplierspend,Thanet District Council,26/02/2016,PC7862,-12.00,,M&S E Commerce,N/A,East Kent Shared Services,Revenue,Catering,Facilities And Management Serv
http://thanet.gov.uk/supplierspend,Thanet District Council,26/02/2016,PC7865,12.00,,M&S E Commerce,N/A,East Kent Shared Services,Revenue,Catering,Facilities And Management Serv
http://thanet.gov.uk/supplierspend,Thanet District Council,26/02/2016,PC7921,298.80,,National Windscreens,N/A,Operational Services,Revenue,Direct Transport Costs,Vehicle Management
http://thanet.gov.uk/supplierspend,Thanet District Council,26/02/2016,PC7833,7.29,,Oyez Forms Link,N/A,Community Services,Revenue,Services,Stationery
http://thanet.gov.uk/supplierspend,Thanet District Council,26/02/2016,PC7826,110.00,,Possession Claims Online,N/A,Community Services,Revenue,Services,Various Cats - Public Sector
http://thanet.gov.uk/supplierspend,Thanet District Council,26/02/2016,PC7828,110.00,,Possession Claims Online,N/A,Community Services,Revenue,Services,Various Cats - Public Sector
http://thanet.gov.uk/supplierspend,Thanet District Council,26/02/2016,PC7829,110.00,,Possession Claims Online,N/A,Community Services,Revenue,Services,Various Cats - Public Sector
http://thanet.gov.uk/supplierspend,Thanet District Council,26/02/2016,PC7853,110.00,,Possession Claims Online,N/A,Community Services,Revenue,Services,Various Cats - Public Sector
http://thanet.gov.uk/supplierspend,Thanet District Council,26/02/2016,PC7856,110.00,,Possession Claims Online,N/A,Community Services,Revenue,Services,Various Cats - Public Sector
http://thanet.gov.uk/supplierspend,Thanet District Council,26/02/2016,PC7857,250.00,,Possession Claims Online,N/A,Community Services,Revenue,Services,Various Cats - Public Sector
http://thanet.gov.uk/supplierspend,Thanet District Council,26/02/2016,PC7858,110.00,,Possession Claims Online,N/A,Community Services,Revenue,Services,Various Cats - Public Sector
http://thanet.gov.uk/supplierspend,Thanet District Council,26/02/2016,PC7859,110.00,,Possession Claims Online,N/A,Community Services,Revenue,Services,Various Cats - Public Sector
http://thanet.gov.uk/supplierspend,Thanet District Council,26/02/2016,PC7876,250.00,,Possession Claims Online,N/A,Community Services,Revenue,Services,Various Cats - Public Sector
http://thanet.gov.uk/supplierspend,Thanet District Council,26/02/2016,PC7879,250.00,,Possession Claims Online,N/A,Community Services,Revenue,Services,Various Cats - Public Sector
http://thanet.gov.uk/supplierspend,Thanet District Council,26/02/2016,PC7882,110.00,,Possession Claims Online,N/A,Community Services,Revenue,Services,Various Cats - Public Sector
http://thanet.gov.uk/supplierspend,Thanet District Council,26/02/2016,PC7883,110.00,,Possession Claims Online,N/A,Community Services,Revenue,Services,Various Cats - Public Sector
http://thanet.gov.uk/supplierspend,Thanet District Council,26/02/2016,PC7936,250.00,,Possession Claims Online,N/A,Community Services,Revenue,Services,Various Cats - Public Sector
http://thanet.gov.uk/supplierspend,Thanet District Council,26/02/2016,PC7941,250.00,,Possession Claims Online,N/A,Community Services,Revenue,Services,Various Cats - Public Sector
http://thanet.gov.uk/supplierspend,Thanet District Council,26/02/2016,PC7891,88.00,14.67,Premier Inn- Blackpool,N/A,Community Services,Revenue,Expenses,Human Resources
http://thanet.gov.uk/supplierspend,Thanet District Council,26/02/2016,PC7917,695.00,,Redactive,N/A,Corporate Resources and S151,Revenue,Expenses,Human Resources
http://thanet.gov.uk/supplierspend,Thanet District Council,26/02/2016,PC7819,64.00,10.67,Repairtech Ltd,N/A,East Kent Shared Services,Revenue,Communications & Computing,ICT
http://thanet.gov.uk/supplierspend,Thanet District Council,26/02/2016,PC7884,59.99,10,Safemount.co.uk,N/A,Community Services,Revenue,"Equip, Furniture And Materials",Facilities And Management Serv
http://thanet.gov.uk/supplierspend,Thanet District Council,26/02/2016,PC7895,262.00,,Safety First Aid,N/A,Operational Services,Revenue,"Equip, Furniture And Materials",Healthcare
http://thanet.gov.uk/supplierspend,Thanet District Council,26/02/2016,PC7846,40.34,,Sainsburys,N/A,Operational Services,Revenue,"Repairs,  Alter & Mtce - Build",Catering
http://thanet.gov.uk/supplierspend,Thanet District Council,26/02/2016,PC7897,12.50,,Screwfix Direct,N/A,Operational Services,Revenue,"Equip, Furniture And Materials",Building Construction Material
http://thanet.gov.uk/supplierspend,Thanet District Council,26/02/2016,PC7915,60.45,,Seton,N/A,Community Services,Revenue,"Equip, Furniture And Materials",Facilities And Management Serv
http://thanet.gov.uk/supplierspend,Thanet District Council,26/02/2016,PC7933,625.10,,Survey Express,N/A,Community Services,Revenue,"Equip, Furniture And Materials",Facilities And Management Serv
http://thanet.gov.uk/supplierspend,Thanet District Council,26/02/2016,PC7870,6.67,,Tesco ,N/A,Community Services,Revenue,"Equip, Furniture And Materials",Catering
http://thanet.gov.uk/supplierspend,Thanet District Council,26/02/2016,PC7889,18.50,,Tetrasoc,N/A,Community Services,Revenue,"Equip, Furniture And Materials",Stationery
http://thanet.gov.uk/supplierspend,Thanet District Council,26/02/2016,PC7837,280.00,,Thanet County Court,N/A,Community Services,Revenue,Services,Various Cats - Public Sector
http://thanet.gov.uk/supplierspend,Thanet District Council,26/02/2016,PC7861,280.00,,Thanet County Court,N/A,Community Services,Revenue,Services,Various Cats - Public Sector
http://thanet.gov.uk/supplierspend,Thanet District Council,26/02/2016,PC7875,280.00,,Thanet County Court,N/A,Community Services,Revenue,Services,Various Cats - Public Sector
http://thanet.gov.uk/supplierspend,Thanet District Council,26/02/2016,PC7894,280.00,,Thanet County Court,N/A,Community Services,Revenue,Services,Various Cats - Public Sector
http://thanet.gov.uk/supplierspend,Thanet District Council,26/02/2016,PC7937,110.00,,Thanet County Court,N/A,Community Services,Revenue,Services,Various Cats - Public Sector
http://thanet.gov.uk/supplierspend,Thanet District Council,26/02/2016,PC7951,54.00,,The Cupcake Cafe,N/A,Chief Executive,Revenue,Catering,Catering
http://thanet.gov.uk/supplierspend,Thanet District Council,26/02/2016,PC7843,25.00,,The Falstaff,N/A,Community Services,Revenue,Catering,Catering
http://thanet.gov.uk/supplierspend,Thanet District Council,26/02/2016,PC7863,22.68,,The Post Office,N/A,Community Services,Revenue,Communications & Computing,Mail Services
http://thanet.gov.uk/supplierspend,Thanet District Council,26/02/2016,PC7835,13.27,,Toolstation Ltd,N/A,Community Services,Revenue,"Equip, Furniture And Materials",Building Construction Material
http://thanet.gov.uk/supplierspend,Thanet District Council,26/02/2016,PC7836,1.88,,Toolstation Ltd,N/A,Community Services,Revenue,"Equip, Furniture And Materials",Building Construction Material
http://thanet.gov.uk/supplierspend,Thanet District Council,26/02/2016,PC7874,48.13,,Toolstation Ltd,N/A,Community Services,Revenue,"Equip, Furniture And Materials",Building Construction Material
http://thanet.gov.uk/supplierspend,Thanet District Council,26/02/2016,PC7887,2.05,,Toolstation Ltd,N/A,Community Services,Revenue,"Equip, Furniture And Materials",Building Construction Material
http://thanet.gov.uk/supplierspend,Thanet District Council,26/02/2016,PC7916,2.00,,Toolstation Ltd,N/A,Community Services,Revenue,"Equip, Furniture And Materials",Building Construction Material
http://thanet.gov.uk/supplierspend,Thanet District Council,26/02/2016,PC7950,11.50,,Transport For London,N/A,Chief Executive,Revenue,Direct Transport Costs,Human Resources
http://thanet.gov.uk/supplierspend,Thanet District Council,26/02/2016,PC7838,270.00,,Trews,N/A,Operational Services,Revenue,"Clothes, Uniforms & Laundry",Clothing
http://thanet.gov.uk/supplierspend,Thanet District Council,26/02/2016,PC7923,227.50,,Vehicle Licensing (DVLA),N/A,Operational Services,Revenue,Direct Transport Costs,Various Cats - Public Sector
http://thanet.gov.uk/supplierspend,Thanet District Council,26/02/2016,PC7820,23.84,,Viking Direct,N/A,Operational Services,Revenue,"Print, Stat And Gen Off Exps",Stationery
http://thanet.gov.uk/supplierspend,Thanet District Council,26/02/2016,PC7899,145.00,,Virgin Trains,N/A,Corporate Resources and S151,Revenue,Public Transport,Human Resources
http://thanet.gov.uk/supplierspend,Thanet District Council,26/02/2016,PC7901,78.70,,Virgin Trains,N/A,Community Services,Revenue,Public Transport,Human Resources
http://thanet.gov.uk/supplierspend,Thanet District Council,26/02/2016,PC7902,60.90,,Virgin Trains,N/A,East Kent Shared Services,Revenue,Public Transport,Human Resources
http://thanet.gov.uk/supplierspend,Thanet District Council,26/02/2016,PC7903,41.40,,Virgin Trains,N/A,Community Services,Revenue,Public Transport,Human Resources
http://thanet.gov.uk/supplierspend,Thanet District Council,26/02/2016,PC7904,72.00,,Virgin Trains,N/A,East Kent Shared Services,Revenue,Public Transport,Human Resources
http://thanet.gov.uk/supplierspend,Thanet District Council,26/02/2016,PC7905,42.70,,Virgin Trains,N/A,Community Services,Revenue,Public Transport,Human Resources
http://thanet.gov.uk/supplierspend,Thanet District Council,26/02/2016,PC7924,77.70,,Virgin Trains,N/A,East Kent Shared Services,Revenue,Public Transport,Human Resources
http://thanet.gov.uk/supplierspend,Thanet District Council,26/02/2016,PC7925,66.70,,Virgin Trains,N/A,Community Services,Revenue,Public Transport,Human Resources
http://thanet.gov.uk/supplierspend,Thanet District Council,26/02/2016,PC7926,157.50,,Virgin Trains,N/A,East Kent Shared Services,Revenue,Public Transport,Human Resources
http://thanet.gov.uk/supplierspend,Thanet District Council,26/02/2016,PC7938,80.90,,Virgin Trains,N/A,Community Services,Revenue,Public Transport,Human Resources
http://thanet.gov.uk/supplierspend,Thanet District Council,26/02/2016,PC7939,160.80,,Virgin Trains,N/A,Community Services,Revenue,Public Transport,Human Resources
http://thanet.gov.uk/supplierspend,Thanet District Council,26/02/2016,PC7940,22.80,,Virgin Trains,N/A,Corporate Resources and S151,Revenue,Public Transport,Human Resources
http://thanet.gov.uk/supplierspend,Thanet District Council,26/02/2016,PC7832,15.35,,Warnstar Signage Ltd,N/A,Operational Services,Revenue,"Print, Stat And Gen Off Exps",Facilities And Management Serv
http://thanet.gov.uk/supplierspend,Thanet District Council,26/02/2016,PC7906,-75.30,,Webtis,N/A,Chief Executive,Revenue,Public Transport,Human Resources
http://thanet.gov.uk/supplierspend,Thanet District Council,26/02/2016,PC7919,3.57,,WM Morrisons PLC,N/A,East Kent Shared Services,Revenue,Catering,Catering
http://thanet.gov.uk/supplierspend,Thanet District Council,26/02/2016,PC7920,25.00,,WM Morrisons PLC,N/A,East Kent Shared Services,Revenue,Catering,Catering
http://thanet.gov.uk/supplierspend,Thanet District Council,26/02/2016,PC7864,25.33,,Wordery EU,N/A,Community Services,Revenue,"Equip, Furniture And Materials",Stationery
